Workbook

Sheet Front Page
C7: Ontario Prevalence | E7: Active cases (per 10,000 pop.)
B8: PATIENT POSTAL CODE | C8: k7p
B9: REPORTING HEALTH UNIT | C9: =VLOOKUP(LEFT(C8,3),'Postal Code'!A2:C941,3,FALSE()) -> Kingston, Frontenac and Lennox & Addington Public Health | E9: =IF(C9=C11,VLOOKUP(C9,Analysis!$A$2:$E$35,5,FALSE()),VLOOKUP(C9,Analysis!$A$2:$D$35,4,FALSE())) -> HIGH
B11: QUICK REFERENCE | C11: =Analysis!A23 -> Kingston, Frontenac and Lennox & Addington Public Health | E11: =VLOOKUP(C11,Analysis!$A$2:$E$35,5,FALSE()) -> HIGH
C14: =Analysis!A27 -> Hastings and Prince Edward Counties Health Unit | E14: =VLOOKUP(C14,Analysis!$A$2:$D$35,4,FALSE()) -> 1.795840557
C17: =Analysis!A12 -> Eastern Ontario Health Unit | E17: =VLOOKUP(C17,Analysis!$A$2:$D$35,4,FALSE()) -> 2.006085125
C20: =Analysis!A32 -> Leeds, Grenville and Lanark District Health Unit | E20: =VLOOKUP(C20,Analysis!$A$2:$D$35,4,FALSE()) -> 0.2604200576

Sheet Analysis
A1: PHU | B1: Postal Code | C1: Active Cases/10 days | D1: Active Rate/10k | E1: Risk Score | F1: 7D Rise (%) | G1: New/7D | H1: Wk Prior | I1: <- Note: this is number of cases over four weeks normalized to one week
A2: Toronto Public Health | B2: M5B 1W2 | C2: =COUNTIFS('Raw Data'!O:O,Analysis!B2,'Raw Data'!B:B,">="&TODAY()-10) -> 2337 | D2: =C2/VLOOKUP(A2,Population!$A$3:$B$36,2,FALSE())*10000 -> 7.822560103 | E2: =IF(D2>1,"HIGH",IF(D2<0.5,"LOW","MEDIUM")) -> HIGH | F2: =IFERROR(COUNTIFS('Raw Data'!O:O,Analysis!B2,'Raw Data'!B:B,">"&(TODAY()-7))/(COUNTIFS('Raw Data'!O:O,Analysis!B2,'Raw Data'!B:B,"<="&(TODAY()-7),'Raw Data'!B:B,">"&(TODAY()-35))/4)-1,0) -> -0.0719445247 | G2: =COUNTIFS('Raw Data'!O:O,Analysis!B2,'Raw Data'!B:B,">"&(TODAY()-7)) -> 803 | H2: =COUNTIFS('Raw Data'!O:O,Analysis!B2,'Raw Data'!B:B,"<="&(TODAY()-7),'Raw Data'!B:B,">"&(TODAY()-35))/4 -> 865.25
A3: Middlesex-London Health Unit | B3: N6A 5L7 | C3: =COUNTIFS('Raw Data'!O:O,Analysis!B3,'Raw Data'!B:B,">="&TODAY()-10) -> 105 | D3: =C3/VLOOKUP(A3,Population!$A$3:$B$36,2,FALSE())*10000 -> 2.129942735 | E3: =IF(D3>1,"HIGH",IF(D3<0.5,"LOW","MEDIUM")) -> HIGH | F3: =IFERROR(COUNTIFS('Raw Data'!O:O,Analysis!B3,'Raw Data'!B:B,">"&(TODAY()-7))/(COUNTIFS('Raw Data'!O:O,Analysis!B3,'Raw Data'!B:B,"<="&(TODAY()-7),'Raw Data'!B:B,">"&(TODAY()-35))/4)-1,0) -> 1.315789474 | G3: =COUNTIFS('Raw Data'!O:O,Analysis!B3,'Raw Data'!B:B,">"&(TODAY()-7)) -> 44 | H3: =COUNTIFS('Raw Data'!O:O,Analysis!B3,'Raw Data'!B:B,"<="&(TODAY()-7),'Raw Data'!B:B,">"&(TODAY()-35))/4 -> 19
A4: York Region Public Health Services | B4: L3Y 6Z1 | C4: =COUNTIFS('Raw Data'!O:O,Analysis!B4,'Raw Data'!B:B,">="&TODAY()-10) -> 913 | D4: =C4/VLOOKUP(A4,Population!$A$3:$B$36,2,FALSE())*10000 -> 7.60351144 | E4: HIGH | F4: =IFERROR(COUNTIFS('Raw Data'!O:O,Analysis!B4,'Raw Data'!B:B,">"&(TODAY()-7))/(COUNTIFS('Raw Data'!O:O,Analysis!B4,'Raw Data'!B:B,"<="&(TODAY()-7),'Raw Data'!B:B,">"&(TODAY()-35))/4)-1,0) -> 0.8379685611 | G4: =COUNTIFS('Raw Data'!O:O,Analysis!B4,'Raw Data'!B:B,">"&(TODAY()-7)) -> 380 | H4: =COUNTIFS('Raw Data'!O:O,Analysis!B4,'Raw Data'!B:B,"<="&(TODAY()-7),'Raw Data'!B:B,">"&(TODAY()-35))/4 -> 206.75
A5: Durham Region Health Department | B5: L1N 0B2 | C5: =COUNTIFS('Raw Data'!O:O,Analysis!B5,'Raw Data'!B:B,">="&TODAY()-10) -> 205 | D5: =C5/VLOOKUP(A5,Population!$A$3:$B$36,2,FALSE())*10000 -> 2.930074138 | E5: HIGH | F5: =IFERROR(COUNTIFS('Raw Data'!O:O,Analysis!B5,'Raw Data'!B:B,">"&(TODAY()-7))/(COUNTIFS('Raw Data'!O:O,Analysis!B5,'Raw Data'!B:B,"<="&(TODAY()-7),'Raw Data'!B:B,">"&(TODAY()-35))/4)-1,0) -> 0.1169811321 | G5: =COUNTIFS('Raw Data'!O:O,Analysis!B5,'Raw Data'!B:B,">"&(TODAY()-7)) -> 74 | H5: =COUNTIFS('Raw Data'!O:O,Analysis!B5,'Raw Data'!B:B,"<="&(TODAY()-7),'Raw Data'!B:B,">"&(TODAY()-35))/4 -> 66.25
A6: Region of Waterloo, Public Health | B6: N2J 4V3 | C6: =COUNTIFS('Raw Data'!O:O,Analysis!B6,'Raw Data'!B:B,">="&TODAY()-10) -> 341 | D6: =C6/VLOOKUP(A6,Population!$A$3:$B$36,2,FALSE())*10000 -> 5.969553526 | E6: HIGH | F6: =IFERROR(COUNTIFS('Raw Data'!O:O,Analysis!B6,'Raw Data'!B:B,">"&(TODAY()-7))/(COUNTIFS('Raw Data'!O:O,Analysis!B6,'Raw Data'!B:B,"<="&(TODAY()-7),'Raw Data'!B:B,">"&(TODAY()-35))/4)-1,0) -> 1.73015873 | G6: =COUNTIFS('Raw Data'!O:O,Analysis!B6,'Raw Data'!B:B,">"&(TODAY()-7)) -> 172 | H6: =COUNTIFS('Raw Data'!O:O,Analysis!B6,'Raw Data'!B:B,"<="&(TODAY()-7),'Raw Data'!B:B,">"&(TODAY()-35))/4 -> 63
A7: Peel Public Health | B7: L5W 1N4 | C7: =COUNTIFS('Raw Data'!O:O,Analysis!B7,'Raw Data'!B:B,">="&TODAY()-10) -> 2327 | D7: =C7/VLOOKUP(A7,Population!$A$3:$B$36,2,FALSE())*10000 -> 14.98316889 | E7: HIGH | F7: =IFERROR(COUNTIFS('Raw Data'!O:O,Analysis!B7,'Raw Data'!B:B,">"&(TODAY()-7))/(COUNTIFS('Raw Data'!O:O,Analysis!B7,'Raw Data'!B:B,"<="&(TODAY()-7),'Raw Data'!B:B,">"&(TODAY()-35))/4)-1,0) -> 0.07966706302 | G7: =COUNTIFS('Raw Data'!O:O,Analysis!B7,'Raw Data'!B:B,">"&(TODAY()-7)) -> 908 | H7: =COUNTIFS('Raw Data'!O:O,Analysis!B7,'Raw Data'!B:B,"<="&(TODAY()-7),'Raw Data'!B:B,">"&(TODAY()-35))/4 -> 841
A8: Halton Region Health Department | B8: L6M 3Ll | C8: =COUNTIFS('Raw Data'!O:O,Analysis!B8,'Raw Data'!B:B,">="&TODAY()-10) -> 279 | D8: =C8/VLOOKUP(A8,Population!$A$3:$B$36,2,FALSE())*10000 -> 4.607952434 | E8: HIGH | F8: =IFERROR(COUNTIFS('Raw Data'!O:O,Analysis!B8,'Raw Data'!B:B,">"&(TODAY()-7))/(COUNTIFS('Raw Data'!O:O,Analysis!B8,'Raw Data'!B:B,"<="&(TODAY()-7),'Raw Data'!B:B,">"&(TODAY()-35))/4)-1,0) -> 0.5384615385 | G8: =COUNTIFS('Raw Data'!O:O,Analysis!B8,'Raw Data'!B:B,">"&(TODAY()-7)) -> 125 | H8: =COUNTIFS('Raw Data'!O:O,Analysis!B8,'Raw Data'!B:B,"<="&(TODAY()-7),'Raw Data'!B:B,">"&(TODAY()-35))/4 -> 81.25
A9: Ottawa Public Health | B9: K2G 6J8 | C9: =COUNTIFS('Raw Data'!O:O,Analysis!B9,'Raw Data'!B:B,">="&TODAY()-10) -> 208 | D9: =C9/VLOOKUP(A9,Population!$A$3:$B$36,2,FALSE())*10000 -> 2.039829635 | E9: HIGH | F9: =IFERROR(COUNTIFS('Raw Data'!O:O,Analysis!B9,'Raw Data'!B:B,">"&(TODAY()-7))/(COUNTIFS('Raw Data'!O:O,Analysis!B9,'Raw Data'!B:B,"<="&(TODAY()-7),'Raw Data'!B:B,">"&(TODAY()-35))/4)-1,0) -> 1.282608696 | G9: =COUNTIFS('Raw Data'!O:O,Analysis!B9,'Raw Data'!B:B,">"&(TODAY()-7)) -> 105 | H9: =COUNTIFS('Raw Data'!O:O,Analysis!B9,'Raw Data'!B:B,"<="&(TODAY()-7),'Raw Data'!B:B,">"&(TODAY()-35))/4 -> 46
A10: Sudbury & District Health Unit | B10: P3E 3A3 | C10: =COUNTIFS('Raw Data'!O:O,Analysis!B10,'Raw Data'!B:B,">="&TODAY()-10) -> 12 | D10: =C10/VLOOKUP(A10,Population!$A$3:$B$36,2,FALSE())*10000 -> 0.5920633903 | E10: MEDIUM | F10: =IFERROR(COUNTIFS('Raw Data'!O:O,Analysis!B10,'Raw Data'!B:B,">"&(TODAY()-7))/(COUNTIFS('Raw Data'!O:O,Analysis!B10,'Raw Data'!B:B,"<="&(TODAY()-7),'Raw Data'!B:B,">"&(TODAY()-35))/4)-1,0) -> 0.1428571429 | G10: =COUNTIFS('Raw Data'!O:O,Analysis!B10,'Raw Data'!B:B,">"&(TODAY()-7)) -> 4 | H10: =COUNTIFS('Raw Data'!O:O,Analysis!B10,'Raw Data'!B:B,"<="&(TODAY()-7),'Raw Data'!B:B,">"&(TODAY()-35))/4 -> 3.5
A11: Hamilton Public Health Services | B11: L8P 4S6 | C11: =COUNTIFS('Raw Data'!O:O,Analysis!B11,'Raw Data'!B:B,">="&TODAY()-10) -> 316 | D11: =C11/VLOOKUP(A11,Population!$A$3:$B$36,2,FALSE())*10000 -> 5.48352167 | E11: HIGH | F11: =IFERROR(COUNTIFS('Raw Data'!O:O,Analysis!B11,'Raw Data'!B:B,">"&(TODAY()-7))/(COUNTIFS('Raw Data'!O:O,Analysis!B11,'Raw Data'!B:B,"<="&(TODAY()-7),'Raw Data'!B:B,">"&(TODAY()-35))/4)-1,0) -> 2.12962963 | G11: =COUNTIFS('Raw Data'!O:O,Analysis!B11,'Raw Data'!B:B,">"&(TODAY()-7)) -> 169 | H11: =COUNTIFS('Raw Data'!O:O,Analysis!B11,'Raw Data'!B:B,"<="&(TODAY()-7),'Raw Data'!B:B,">"&(TODAY()-35))/4 -> 54
A12: Eastern Ontario Health Unit | B12: K6J 5T1 | C12: =COUNTIFS('Raw Data'!O:O,Analysis!B12,'Raw Data'!B:B,">="&TODAY()-10) -> 36 | D12: =C12/VLOOKUP(A12,Population!$A$3:$B$36,2,FALSE())*10000 -> 2.006085125 | E12: HIGH | F12: =IFERROR(COUNTIFS('Raw Data'!O:O,Analysis!B12,'Raw Data'!B:B,">"&(TODAY()-7))/(COUNTIFS('Raw Data'!O:O,Analysis!B12,'Raw Data'!B:B,"<="&(TODAY()-7),'Raw Data'!B:B,">"&(TODAY()-35))/4)-1,0) -> 0.5238095238 | G12: =COUNTIFS('Raw Data'!O:O,Analysis!B12,'Raw Data'!B:B,">"&(TODAY()-7)) -> 16 | H12: =COUNTIFS('Raw Data'!O:O,Analysis!B12,'Raw Data'!B:B,"<="&(TODAY()-7),'Raw Data'!B:B,">"&(TODAY()-35))/4 -> 10.5
A13: Simcoe Muskoka District Health Unit | B13: L4M 6K9 | C13: =COUNTIFS('Raw Data'!O:O,Analysis!B13,'Raw Data'!B:B,">="&TODAY()-10) -> 157 | D13: =C13/VLOOKUP(A13,Population!$A$3:$B$36,2,FALSE())*10000 -> 2.79288863 | E13: HIGH | F13: =IFERROR(COUNTIFS('Raw Data'!O:O,Analysis!B13,'Raw Data'!B:B,">"&(TODAY()-7))/(COUNTIFS('Raw Data'!O:O,Analysis!B13,'Raw Data'!B:B,"<="&(TODAY()-7),'Raw Data'!B:B,">"&(TODAY()-35))/4)-1,0) -> 0.6571428571 | G13: =COUNTIFS('Raw Data'!O:O,Analysis!B13,'Raw Data'!B:B,">"&(TODAY()-7)) -> 58 | H13: =COUNTIFS('Raw Data'!O:O,Analysis!B13,'Raw Data'!B:B,"<="&(TODAY()-7),'Raw Data'!B:B,">"&(TODAY()-35))/4 -> 35
A14: Niagara Region Public Health Department | B14: L2V 4T7 | C14: =COUNTIFS('Raw Data'!O:O,Analysis!B14,'Raw Data'!B:B,">="&TODAY()-10) -> 120 | D14: =C14/VLOOKUP(A14,Population!$A$3:$B$36,2,FALSE())*10000 -> 2.661839864 | E14: HIGH | F14: =IFERROR(COUNTIFS('Raw Data'!O:O,Analysis!B14,'Raw Data'!B:B,">"&(TODAY()-7))/(COUNTIFS('Raw Data'!O:O,Analysis!B14,'Raw Data'!B:B,"<="&(TODAY()-7),'Raw Data'!B:B,">"&(TODAY()-35))/4)-1,0) -> 0.4545454545 | G14: =COUNTIFS('Raw Data'!O:O,Analysis!B14,'Raw Data'!B:B,">"&(TODAY()-7)) -> 44 | H14: =COUNTIFS('Raw Data'!O:O,Analysis!B14,'Raw Data'!B:B,"<="&(TODAY()-7),'Raw Data'!B:B,">"&(TODAY()-35))/4 -> 30.25
A15: Haliburton, Kawartha, Pine Ridge District Health Unit | B15: L1A 3V6 | C15: =COUNTIFS('Raw Data'!O:O,Analysis!B15,'Raw Data'!B:B,">="&TODAY()-10) -> 19 | D15: =C15/VLOOKUP(A15,Population!$A$3:$B$36,2,FALSE())*10000 -> 1.023359528 | E15: HIGH | F15: =IFERROR(COUNTIFS('Raw Data'!O:O,Analysis!B15,'Raw Data'!B:B,">"&(TODAY()-7))/(COUNTIFS('Raw Data'!O:O,Analysis!B15,'Raw Data'!B:B,"<="&(TODAY()-7),'Raw Data'!B:B,">"&(TODAY()-35))/4)-1,0) -> 1.933333333 | G15: =COUNTIFS('Raw Data'!O:O,Analysis!B15,'Raw Data'!B:B,">"&(TODAY()-7)) -> 11 | H15: =COUNTIFS('Raw Data'!O:O,Analysis!B15,'Raw Data'!B:B,"<="&(TODAY()-7),'Raw Data'!B:B,">"&(TODAY()-35))/4 -> 3.75
A16: Huron Perth District Health Unit | B16: N5A 1L4 | C16: =COUNTIFS('Raw Data'!O:O,Analysis!B16,'Raw Data'!B:B,">="&TODAY()-10) -> 35 | D16: =C16/VLOOKUP(A16,Population!$A$3:$B$36,2,FALSE())*10000 -> 2.560875673 | E16: HIGH | F16: =IFERROR(COUNTIFS('Raw Data'!O:O,Analysis!B16,'Raw Data'!B:B,">"&(TODAY()-7))/(COUNTIFS('Raw Data'!O:O,Analysis!B16,'Raw Data'!B:B,"<="&(TODAY()-7),'Raw Data'!B:B,">"&(TODAY()-35))/4)-1,0) -> 2.2 | G16: =COUNTIFS('Raw Data'!O:O,Analysis!B16,'Raw Data'!B:B,">"&(TODAY()-7)) -> 20 | H16: =COUNTIFS('Raw Data'!O:O,Analysis!B16,'Raw Data'!B:B,"<="&(TODAY()-7),'Raw Data'!B:B,">"&(TODAY()-35))/4 -> 6.25
A17: Northwestern Health Unit | B17: P9N 2K4 | C17: =COUNTIFS('Raw Data'!O:O,Analysis!B17,'Raw Data'!B:B,">="&TODAY()-10) -> 15 | D17: =C17/VLOOKUP(A17,Population!$A$3:$B$36,2,FALSE())*10000 -> 2.006125369 | E17: HIGH | F17: =IFERROR(COUNTIFS('Raw Data'!O:O,Analysis!B17,'Raw Data'!B:B,">"&(TODAY()-7))/(COUNTIFS('Raw Data'!O:O,Analysis!B17,'Raw Data'!B:B,"<="&(TODAY()-7),'Raw Data'!B:B,">"&(TODAY()-35))/4)-1,0) -> -0.4666666667 | G17: =COUNTIFS('Raw Data'!O:O,Analysis!B17,'Raw Data'!B:B,">"&(TODAY()-7)) -> 2 | H17: =COUNTIFS('Raw Data'!O:O,Analysis!B17,'Raw Data'!B:B,"<="&(TODAY()-7),'Raw Data'!B:B,">"&(TODAY()-35))/4 -> 3.75
A18: Peterborough Public Health | B18: K9J 2R8 | C18: =COUNTIFS('Raw Data'!O:O,Analysis!B18,'Raw Data'!B:B,">="&TODAY()-10) -> 15 | D18: =C18/VLOOKUP(A18,Population!$A$3:$B$36,2,FALSE())*10000 -> 1.039955074 | E18: HIGH | F18: =IFERROR(COUNTIFS('Raw Data'!O:O,Analysis!B18,'Raw Data'!B:B,">"&(TODAY()-7))/(COUNTIFS('Raw Data'!O:O,Analysis!B18,'Raw Data'!B:B,"<="&(TODAY()-7),'Raw Data'!B:B,">"&(TODAY()-35))/4)-1,0) -> 1.909090909 | G18: =COUNTIFS('Raw Data'!O:O,Analysis!B18,'Raw Data'!B:B,">"&(TODAY()-7)) -> 8 | H18: =COUNTIFS('Raw Data'!O:O,Analysis!B18,'Raw Data'!B:B,"<="&(TODAY()-7),'Raw Data'!B:B,">"&(TODAY()-35))/4 -> 2.75
A19: Grey Bruce Health Unit | B19: N4K 0A5 | C19: =COUNTIFS('Raw Data'!O:O,Analysis!B19,'Raw Data'!B:B,">="&TODAY()-10) -> 35 | D19: =C19/VLOOKUP(A19,Population!$A$3:$B$36,2,FALSE())*10000 -> 2.262853005 | E19: HIGH | F19: =IFERROR(COUNTIFS('Raw Data'!O:O,Analysis!B19,'Raw Data'!B:B,">"&(TODAY()-7))/(COUNTIFS('Raw Data'!O:O,Analysis!B19,'Raw Data'!B:B,"<="&(TODAY()-7),'Raw Data'!B:B,">"&(TODAY()-35))/4)-1,0) -> 0.06666666667 | G19: =COUNTIFS('Raw Data'!O:O,Analysis!B19,'Raw Data'!B:B,">"&(TODAY()-7)) -> 12 | H19: =COUNTIFS('Raw Data'!O:O,Analysis!B19,'Raw Data'!B:B,"<="&(TODAY()-7),'Raw Data'!B:B,">"&(TODAY()-35))/4 -> 11.25
A20: Wellington-Dufferin-Guelph Public Health | B20: N1G 0E1 | C20: =COUNTIFS('Raw Data'!O:O,Analysis!B20,'Raw Data'!B:B,">="&TODAY()-10) -> 126 | D20: =C20/VLOOKUP(A20,Population!$A$3:$B$36,2,FALSE())*10000 -> 4.142107149 | E20: HIGH | F20: =IFERROR(COUNTIFS('Raw Data'!O:O,Analysis!B20,'Raw Data'!B:B,">"&(TODAY()-7))/(COUNTIFS('Raw Data'!O:O,Analysis!B20,'Raw Data'!B:B,"<="&(TODAY()-7),'Raw Data'!B:B,">"&(TODAY()-35))/4)-1,0) -> 0.25 | G20: =COUNTIFS('Raw Data'!O:O,Analysis!B20,'Raw Data'!B:B,">"&(TODAY()-7)) -> 40 | H20: =COUNTIFS('Raw Data'!O:O,Analysis!B20,'Raw Data'!B:B,"<="&(TODAY()-7),'Raw Data'!B:B,">"&(TODAY()-35))/4 -> 32
A21: Brant County Health Unit | B21: N3R 1G7 | C21: =COUNTIFS('Raw Data'!O:O,Analysis!B21,'Raw Data'!B:B,">="&TODAY()-10) -> 56 | D21: =C21/VLOOKUP(A21,Population!$A$3:$B$36,2,FALSE())*10000 -> 3.683507752 | E21: HIGH | F21: =IFERROR(COUNTIFS('Raw Data'!O:O,Analysis!B21,'Raw Data'!B:B,">"&(TODAY()-7))/(COUNTIFS('Raw Data'!O:O,Analysis!B21,'Raw Data'!B:B,"<="&(TODAY()-7),'Raw Data'!B:B,">"&(TODAY()-35))/4)-1,0) -> 0.5 | G21: =COUNTIFS('Raw Data'!O:O,Analysis!B21,'Raw Data'!B:B,">"&(TODAY()-7)) -> 21 | H21: =COUNTIFS('Raw Data'!O:O,Analysis!B21,'Raw Data'!B:B,"<="&(TODAY()-7),'Raw Data'!B:B,">"&(TODAY()-35))/4 -> 14
A22: Windsor-Essex County Health Unit | B22: N9A 4J8 | C22: =COUNTIFS('Raw Data'!O:O,Analysis!B22,'Raw Data'!B:B,">="&TODAY()-10) -> 260 | D22: =C22/VLOOKUP(A22,Population!$A$3:$B$36,2,FALSE())*10000 -> 7.453359172 | E22: HIGH | F22: =IFERROR(COUNTIFS('Raw Data'!O:O,Analysis!B22,'Raw Data'!B:B,">"&(TODAY()-7))/(COUNTIFS('Raw Data'!O:O,Analysis!B22,'Raw Data'!B:B,"<="&(TODAY()-7),'Raw Data'!B:B,">"&(TODAY()-35))/4)-1,0) -> 0.4418604651 | G22: =COUNTIFS('Raw Data'!O:O,Analysis!B22,'Raw Data'!B:B,">"&(TODAY()-7)) -> 93 | H22: =COUNTIFS('Raw Data'!O:O,Analysis!B22,'Raw Data'!B:B,"<="&(TODAY()-7),'Raw Data'!B:B,">"&(TODAY()-35))/4 -> 64.5
A23: Kingston, Frontenac and Lennox & Addington Public Health | B23: K7M 1V5 | C23: =COUNTIFS('Raw Data'!O:O,Analysis!B23,'Raw Data'!B:B,">="&TODAY()-10) -> 12 | D23: =C23/VLOOKUP(A23,Population!$A$3:$B$36,2,FALSE())*10000 -> 0.5803605974 | E23: HIGH | F23: =IFERROR(COUNTIFS('Raw Data'!O:O,Analysis!B23,'Raw Data'!B:B,">"&(TODAY()-7))/(COUNTIFS('Raw Data'!O:O,Analysis!B23,'Raw Data'!B:B,"<="&(TODAY()-7),'Raw Data'!B:B,">"&(TODAY()-35))/4)-1,0) -> 2.2 | G23: =COUNTIFS('Raw Data'!O:O,Analysis!B23,'Raw Data'!B:B,">"&(TODAY()-7)) -> 8 | H23: =COUNTIFS('Raw Data'!O:O,Analysis!B23,'Raw Data'!B:B,"<="&(TODAY()-7),'Raw Data'!B:B,">"&(TODAY()-35))/4 -> 2.5
A24: Algoma Public Health Unit | B24: P6B 0A9 | C24: =COUNTIFS('Raw Data'!O:O,Analysis!B24,'Raw Data'!B:B,">="&TODAY()-10) -> 2 | D24: =C24/VLOOKUP(A24,Population!$A$3:$B$36,2,FALSE())*10000 -> 0.1800828381 | E24: LOW | F24: =IFERROR(COUNTIFS('Raw Data'!O:O,Analysis!B24,'Raw Data'!B:B,">"&(TODAY()-7))/(COUNTIFS('Raw Data'!O:O,Analysis!B24,'Raw Data'!B:B,"<="&(TODAY()-7),'Raw Data'!B:B,">"&(TODAY()-35))/4)-1,0) -> -1 | G24: =COUNTIFS('Raw Data'!O:O,Analysis!B24,'Raw Data'!B:B,">"&(TODAY()-7)) -> 0 | H24: =COUNTIFS('Raw Data'!O:O,Analysis!B24,'Raw Data'!B:B,"<="&(TODAY()-7),'Raw Data'!B:B,">"&(TODAY()-35))/4 -> 0.5
A25: Porcupine Health Unit | B25: P4N 8B7 | C25: =COUNTIFS('Raw Data'!O:O,Analysis!B25,'Raw Data'!B:B,">="&TODAY()-10) -> 2 | D25: =C25/VLOOKUP(A25,Population!$A$3:$B$36,2,FALSE())*10000 -> 0.2208968412 | E25: LOW | F25: =IFERROR(COUNTIFS('Raw Data'!O:O,Analysis!B25,'Raw Data'!B:B,">"&(TODAY()-7))/(COUNTIFS('Raw Data'!O:O,Analysis!B25,'Raw Data'!B:B,"<="&(TODAY()-7),'Raw Data'!B:B,">"&(TODAY()-35))/4)-1,0) -> -1 | G25: =COUNTIFS('Raw Data'!O:O,Analysis!B25,'Raw Data'!B:B,">"&(TODAY()-7)) -> 0 | H25: =COUNTIFS('Raw Data'!O:O,Analysis!B25,'Raw Data'!B:B,"<="&(TODAY()-7),'Raw Data'!B:B,">"&(TODAY()-35))/4 -> 0.5
A26: Chatham-Kent Health Unit | B26: N7M 5L8 | C26: =COUNTIFS('Raw Data'!O:O,Analysis!B26,'Raw Data'!B:B,">="&TODAY()-10) -> 10 | D26: =C26/VLOOKUP(A26,Population!$A$3:$B$36,2,FALSE())*10000 -> 0.949640561 | E26: MEDIUM | F26: =IFERROR(COUNTIFS('Raw Data'!O:O,Analysis!B26,'Raw Data'!B:B,">"&(TODAY()-7))/(COUNTIFS('Raw Data'!O:O,Analysis!B26,'Raw Data'!B:B,"<="&(TODAY()-7),'Raw Data'!B:B,">"&(TODAY()-35))/4)-1,0) -> -0.3684210526 | G26: =COUNTIFS('Raw Data'!O:O,Analysis!B26,'Raw Data'!B:B,">"&(TODAY()-7)) -> 3 | H26: =COUNTIFS('Raw Data'!O:O,Analysis!B26,'Raw Data'!B:B,"<="&(TODAY()-7),'Raw Data'!B:B,">"&(TODAY()-35))/4 -> 4.75
A27: Hastings and Prince Edward Counties Health Unit | B27: K8P 4P1 | C27: =COUNTIFS('Raw Data'!O:O,Analysis!B27,'Raw Data'!B:B,">="&TODAY()-10) -> 26 | D27: =C27/VLOOKUP(A27,Population!$A$3:$B$36,2,FALSE())*10000 -> 1.795840557 | E27: HIGH | F27: =IFERROR(COUNTIFS('Raw Data'!O:O,Analysis!B27,'Raw Data'!B:B,">"&(TODAY()-7))/(COUNTIFS('Raw Data'!O:O,Analysis!B27,'Raw Data'!B:B,"<="&(TODAY()-7),'Raw Data'!B:B,">"&(TODAY()-35))/4)-1,0) -> 3.307692308 | G27: =COUNTIFS('Raw Data'!O:O,Analysis!B27,'Raw Data'!B:B,">"&(TODAY()-7)) -> 14 | H27: =COUNTIFS('Raw Data'!O:O,Analysis!B27,'Raw Data'!B:B,"<="&(TODAY()-7),'Raw Data'!B:B,">"&(TODAY()-35))/4 -> 3.25
A28: Southwestern Public Health | B28: N5P 1G9 | C28: =COUNTIFS('Raw Data'!O:O,Analysis!B28,'Raw Data'!B:B,">="&TODAY()-10) -> 40 | D28: =C28/VLOOKUP(A28,Population!$A$3:$B$36,2,FALSE())*10000 -> 1.91169864 | E28: HIGH | F28: =IFERROR(COUNTIFS('Raw Data'!O:O,Analysis!B28,'Raw Data'!B:B,">"&(TODAY()-7))/(COUNTIFS('Raw Data'!O:O,Analysis!B28,'Raw Data'!B:B,"<="&(TODAY()-7),'Raw Data'!B:B,">"&(TODAY()-35))/4)-1,0) -> 0.8285714286 | G28: =COUNTIFS('Raw Data'!O:O,Analysis!B28,'Raw Data'!B:B,">"&(TODAY()-7)) -> 16 | H28: =COUNTIFS('Raw Data'!O:O,Analysis!B28,'Raw Data'!B:B,"<="&(TODAY()-7),'Raw Data'!B:B,">"&(TODAY()-35))/4 -> 8.75
A29: Timiskaming Health Unit | B29: P0J 1P0 | C29: =COUNTIFS('Raw Data'!O:O,Analysis!B29,'Raw Data'!B:B,">="&TODAY()-10) -> 0 | D29: =C29/VLOOKUP(A29,Population!$A$3:$B$36,2,FALSE())*10000 -> 0 | E29: LOW | F29: =IFERROR(COUNTIFS('Raw Data'!O:O,Analysis!B29,'Raw Data'!B:B,">"&(TODAY()-7))/(COUNTIFS('Raw Data'!O:O,Analysis!B29,'Raw Data'!B:B,"<="&(TODAY()-7),'Raw Data'!B:B,">"&(TODAY()-35))/4)-1,0) -> -1 | G29: =COUNTIFS('Raw Data'!O:O,Analysis!B29,'Raw Data'!B:B,">"&(TODAY()-7)) -> 0 | H29: =COUNTIFS('Raw Data'!O:O,Analysis!B29,'Raw Data'!B:B,"<="&(TODAY()-7),'Raw Data'!B:B,">"&(TODAY()-35))/4 -> 0.25
A30: North Bay Parry Sound District Health Unit | B30: P1B 2T2 | C30: =COUNTIFS('Raw Data'!O:O,Analysis!B30,'Raw Data'!B:B,">="&TODAY()-10) -> 13 | D30: =C30/VLOOKUP(A30,Population!$A$3:$B$36,2,FALSE())*10000 -> 1.009285426 | E30: HIGH | F30: =IFERROR(COUNTIFS('Raw Data'!O:O,Analysis!B30,'Raw Data'!B:B,">"&(TODAY()-7))/(COUNTIFS('Raw Data'!O:O,Analysis!B30,'Raw Data'!B:B,"<="&(TODAY()-7),'Raw Data'!B:B,">"&(TODAY()-35))/4)-1,0) -> 2 | G30: =COUNTIFS('Raw Data'!O:O,Analysis!B30,'Raw Data'!B:B,">"&(TODAY()-7)) -> 6 | H30: =COUNTIFS('Raw Data'!O:O,Analysis!B30,'Raw Data'!B:B,"<="&(TODAY()-7),'Raw Data'!B:B,">"&(TODAY()-35))/4 -> 2
A31: Lambton Public Health | B31: N7T 7Z6 | C31: =COUNTIFS('Raw Data'!O:O,Analysis!B31,'Raw Data'!B:B,">="&TODAY()-10) -> 12 | D31: =C31/VLOOKUP(A31,Population!$A$3:$B$36,2,FALSE())*10000 -> 1.034616545 | E31: HIGH | F31: =IFERROR(COUNTIFS('Raw Data'!O:O,Analysis!B31,'Raw Data'!B:B,">"&(TODAY()-7))/(COUNTIFS('Raw Data'!O:O,Analysis!B31,'Raw Data'!B:B,"<="&(TODAY()-7),'Raw Data'!B:B,">"&(TODAY()-35))/4)-1,0) -> -0.6666666667 | G31: =COUNTIFS('Raw Data'!O:O,Analysis!B31,'Raw Data'!B:B,">"&(TODAY()-7)) -> 1 | H31: =COUNTIFS('Raw Data'!O:O,Analysis!B31,'Raw Data'!B:B,"<="&(TODAY()-7),'Raw Data'!B:B,">"&(TODAY()-35))/4 -> 3
A32: Leeds, Grenville and Lanark District Health Unit | B32: K6V 7A3 | C32: =COUNTIFS('Raw Data'!O:O,Analysis!B32,'Raw Data'!B:B,">="&TODAY()-10) -> 4 | D32: =C32/VLOOKUP(A32,Population!$A$3:$B$36,2,FALSE())*10000 -> 0.2604200576 | E32: LOW | F32: =IFERROR(COUNTIFS('Raw Data'!O:O,Analysis!B32,'Raw Data'!B:B,">"&(TODAY()-7))/(COUNTIFS('Raw Data'!O:O,Analysis!B32,'Raw Data'!B:B,"<="&(TODAY()-7),'Raw Data'!B:B,">"&(TODAY()-35))/4)-1,0) -> 2 | G32: =COUNTIFS('Raw Data'!O:O,Analysis!B32,'Raw Data'!B:B,">"&(TODAY()-7)) -> 3 | H32: =COUNTIFS('Raw Data'!O:O,Analysis!B32,'Raw Data'!B:B,"<="&(TODAY()-7),'Raw Data'!B:B,">"&(TODAY()-35))/4 -> 1
A33: Haldimand-Norfolk Health Unit | B33: N3Y 4N5 | C33: =COUNTIFS('Raw Data'!O:O,Analysis!B33,'Raw Data'!B:B,">="&TODAY()-10) -> 28 | D33: =C33/VLOOKUP(A33,Population!$A$3:$B$36,2,FALSE())*10000 -> 2.475729014 | E33: HIGH | F33: =IFERROR(COUNTIFS('Raw Data'!O:O,Analysis!B33,'Raw Data'!B:B,">"&(TODAY()-7))/(COUNTIFS('Raw Data'!O:O,Analysis!B33,'Raw Data'!B:B,"<="&(TODAY()-7),'Raw Data'!B:B,">"&(TODAY()-35))/4)-1,0) -> -0.0303030303 | G33: =COUNTIFS('Raw Data'!O:O,Analysis!B33,'Raw Data'!B:B,">"&(TODAY()-7)) -> 8 | H33: =COUNTIFS('Raw Data'!O:O,Analysis!B33,'Raw Data'!B:B,"<="&(TODAY()-7),'Raw Data'!B:B,">"&(TODAY()-35))/4 -> 8.25
A34: Renfrew County and District Health Unit | B34: K8A 6W5 | C34: =COUNTIFS('Raw Data'!O:O,Analysis!B34,'Raw Data'!B:B,">="&TODAY()-10) -> 6 | D34: =C34/VLOOKUP(A34,Population!$A$3:$B$36,2,FALSE())*10000 -> 0.5629679671 | E34: MEDIUM | F34: =IFERROR(COUNTIFS('Raw Data'!O:O,Analysis!B34,'Raw Data'!B:B,">"&(TODAY()-7))/(COUNTIFS('Raw Data'!O:O,Analysis!B34,'Raw Data'!B:B,"<="&(TODAY()-7),'Raw Data'!B:B,">"&(TODAY()-35))/4)-1,0) -> -0.5555555556 | G34: =COUNTIFS('Raw Data'!O:O,Analysis!B34,'Raw Data'!B:B,">"&(TODAY()-7)) -> 1 | H34: =COUNTIFS('Raw Data'!O:O,Analysis!B34,'Raw Data'!B:B,"<="&(TODAY()-7),'Raw Data'!B:B,">"&(TODAY()-35))/4 -> 2.25
A35: Thunder Bay District Health Unit | B35: P7B 6E7 | C35: =COUNTIFS('Raw Data'!O:O,Analysis!B35,'Raw Data'!B:B,">="&TODAY()-10) -> 46 | D35: =C35/VLOOKUP(A35,Population!$A$3:$B$36,2,FALSE())*10000 -> 2.978425837 | E35: HIGH | F35: =IFERROR(COUNTIFS('Raw Data'!O:O,Analysis!B35,'Raw Data'!B:B,">"&(TODAY()-7))/(COUNTIFS('Raw Data'!O:O,Analysis!B35,'Raw Data'!B:B,"<="&(TODAY()-7),'Raw Data'!B:B,">"&(TODAY()-35))/4)-1,0) -> -0.1475409836 | G35: =COUNTIFS('Raw Data'!O:O,Analysis!B35,'Raw Data'!B:B,">"&(TODAY()-7)) -> 13 | H35: =COUNTIFS('Raw Data'!O:O,Analysis!B35,'Raw Data'!B:B,"<="&(TODAY()-7),'Raw Data'!B:B,">"&(TODAY()-35))/4 -> 15.25

Sheet Population
A1: Estimates of population | B1: 2018
A2: Name | B2: Population
A3: Algoma Public Health Unit | B3: 111060
A4: Brant County Health Unit | B4: 152029
A5: Chatham-Kent Health Unit | B5: 105303
A6: Durham Region Health Department | B6: 699641
A7: Eastern Ontario Health Unit | B7: 179454
A8: Grey Bruce Health Unit | B8: 154672
A9: Haldimand-Norfolk Health Unit | B9: 113098
A10: Haliburton, Kawartha, Pine Ridge District Health Unit | B10: 185663
A11: Halton Region Health Department | B11: 605475
A12: Hamilton Public Health Services | B12: 576272
A13: Hastings and Prince Edward Counties Health Unit | B13: 144779
A14: Huron Perth District Health Unit | B14: 136672
A15: Kingston, Frontenac and Lennox & Addington Public Health | B15: 206768
A16: Lambton Public Health | B16: 115985
A17: Leeds, Grenville and Lanark District Health Unit | B17: 153598
A18: Middlesex-London Health Unit | B18: 492971
A19: Niagara Region Public Health Department | B19: 450816
A20: North Bay Parry Sound District Health Unit | B20: 128804
A21: Northwestern Health Unit | B21: 74771
A22: Ottawa Public Health | B22: 1019693
A23: Peel Public Health | B23: 1553076
A24: Peterborough Public Health | B24: 144237
A25: Porcupine Health Unit | B25: 90540
A26: Region of Waterloo, Public Health | B26: 571232
A27: Renfrew County and District Health Unit | B27: 106578
A28: Simcoe Muskoka District Health Unit | B28: 562142
A29: Southwestern Public Health | B29: 209238
A30: Sudbury & District Health Unit | B30: 202681
A31: Thunder Bay District Health Unit | B31: 154444
A32: Timiskaming Health Unit | B32: 33389
A33: Toronto Public Health | B33: 2987513
A34: Wellington-Dufferin-Guelph Public Health | B34: 304193
A35: Windsor-Essex County Health Unit | B35: 348836
A36: York Region Public Health Services | B36: 1200761

Sheet Postal Code
A1: FSA | B1: Type | C1: PHU | D1: Prevalence
A2: * K0N | B2: Not in use
A3: * K0P | B3: Not in use
A4: * K0R | B4: Not in use
A5: * K0S | B5: Not in use
A6: * K0T | B6: Not in use
A7: * K0V | B7: Not in use
A8: * K0W | B8: Not in use
A9: * K0X | B9: Not in use
A10: * K0Y | B10: Not in use
A11: * K0Z | B11: Not in use
A12: * K2N | B12: Not assigned
A13: * K2X | B13: Not assigned
A14: * K2Y | B14: Not assigned
A15: * K2Z | B15: Not assigned
A16: * K4E | B16: Not assigned
A17: * K4G | B17: Not assigned
A18: * K4H | B18: Not assigned
A19: * K4J | B19: Not assigned
A20: * K4L | B20: Not assigned
A21: * K4N | B21: Not assigned
A22: * K4S | B22: Not assigned
A23: * K4T | B23: Not assigned
A24: * K4V | B24: Not assigned
A25: * K4W | B25: Not assigned
A26: * K4X | B26: Not assigned
A27: * K4Y | B27: Not assigned
A28: * K4Z | B28: Not assigned
A29: * K6B | B29: Not assigned
A30: * K6C | B30: Not assigned
A31: * K6E | B31: Not assigned
A32: * K6G | B32: Not assigned
A33: * K6L | B33: Not assigned
A34: * K6M | B34: Not assigned
A35: * K6N | B35: Not assigned
A36: * K6P | B36: Not assigned
A37: * K6R | B37: Not assigned
A38: * K6S | B38: Not assigned
A39: * K6W | B39: Not assigned
A40: * K6X | B40: Not assigned
A41: * K6Y | B41: Not assigned
A42: * K6Z | B42: Not assigned
A43: * K7B | B43: Not assigned
A44: * K7E | B44: Not assigned
A45: * K7J | B45: Not assigned
A46: * K7T | B46: Not assigned
A47: * K7W | B47: Not assigned
A48: * K7X | B48: Not assigned
A49: * K7Y | B49: Not assigned
A50: * K7Z | B50: Not assigned
A51: * K8C | B51: Not assigned
A52: * K8E | B52: Not assigned
A53: * K8G | B53: Not assigned
A54: * K8J | B54: Not assigned
A55: * K8K | B55: Not assigned
A56: * K8L | B56: Not assigned
A57: * K8M | B57: Not assigned
A58: * K8S | B58: Not assigned
A59: * K8T | B59: Not assigned
A60: * K8W | B60: Not assigned
A61: * K8X | B61: Not assigned
A62: * K8Y | B62: Not assigned
A63: * K8Z | B63: Not assigned
A64: * K9B | B64: Not assigned
A65: * K9C | B65: Not assigned
A66: * K9E | B66: Not assigned
A67: * K9G | B67: Not assigned
A68: * K9M | B68: Not assigned
A69: * K9N | B69: Not assigned
A70: * K9P | B70: Not assigned
A71: * K9R | B71: Not assigned
A72: * K9S | B72: Not assigned
A73: * K9T | B73: Not assigned
A74: * K9W | B74: Not assigned
A75: * K9X | B75: Not assigned
A76: * K9Y | B76: Not assigned
A77: * K9Z | B77: Not assigned
A78: * L0T | B78: Not in use
A79: * L0V | B79: Not in use
A80: * L0W | B80: Not in use
A81: * L0X | B81: Not in use
A82: * L0Y | B82: Not in use
A83: * L0Z | B83: Not in use
A84: * L2B | B84: Not assigned
A85: * L2C | B85: Not assigned
A86: * L2K | B86: Not assigned
A87: * L2L | B87: Not assigned
A88: * L2X | B88: Not assigned
A89: * L2Y | B89: Not assigned
A90: * L2Z | B90: Not assigned
A91: * L3A | B91: Not assigned
A92: * L3E | B92: Not assigned
A93: * L3G | B93: Not assigned
A94: * L3H | B94: Not assigned
A95: * L3J | B95: Not assigned
A96: * L3L | B96: Not assigned
A97: * L3N | B97: Not assigned
A98: * L3W | B98: Not assigned
A99: * L5X | B99: Not assigned
A100: * L5Y | B100: Not assigned
A101: * L5Z | B101: Not assigned
A102: * L6N | B102: Not assigned
A103: * L7H | B103: Not assigned
A104: * L7V | B104: Not assigned
A105: * L7W | B105: Not assigned
A106: * L7X | B106: Not assigned
A107: * L7Y | B107: Not assigned
A108: * L7Z | B108: Not assigned
A109: * L8A | B109: Not assigned
A110: * L8C | B110: Not assigned
A111: * L8X | B111: Not assigned
A112: * L8Y | B112: Not assigned
A113: * L8Z | B113: Not assigned
A114: * M1A | B114: Not assigned
A115: * M1Y | B115: Not assigned
A116: * M1Z | B116: Not assigned
A117: * M2A | B117: Not assigned
A118: * M2B | B118: Not assigned
A119: * M2C | B119: Not assigned
A120: * M2E | B120: Not assigned
A121: * M2G | B121: Not assigned
A122: * M2S | B122: Not assigned
A123: * M2T | B123: Not assigned
A124: * M2V | B124: Not assigned
A125: * M2W | B125: Not assigned
A126: * M2X | B126: Not assigned
A127: * M2Y | B127: Not assigned
A128: * M2Z | B128: Not assigned
A129: * M3E | B129: Not assigned
A130: * M3G | B130: Not assigned
A131: * M3P | B131: Not assigned
A132: * M3R | B132: Not assigned
A133: * M3S | B133: Not assigned
A134: * M3T | B134: Not assigned
A135: * M3V | B135: Not assigned
A136: * M3W | B136: Not assigned
A137: * M3X | B137: Not assigned
A138: * M3Y | B138: Not assigned
A139: * M3Z | B139: Not assigned
A140: * M4Z | B140: Not assigned
A141: * M5Y | B141: Not assigned
A142: * M5Z | B142: Not assigned
A143: * M6T | B143: Not assigned
A144: * M6V | B144: Not assigned
A145: * M6W | B145: Not assigned
A146: * M6X | B146: Not assigned
A147: * M6Y | B147: Not assigned
A148: * M6Z | B148: Not assigned
A149: * M7B | B149: Not assigned
A150: * M7C | B150: Not assigned
A151: * M7E | B151: Not assigned
A152: * M7G | B152: Not assigned
A153: * M7H | B153: Not assigned
A154: * M7J | B154: Not assigned
A155: * M7K | B155: Not assigned
A156: * M7L | B156: Not assigned
A157: * M7M | B157: Not assigned
A158: * M7N | B158: Not assigned
A159: * M7P | B159: Not assigned
A160: * M7S | B160: Not assigned
A161: * M7T | B161: Not assigned
A162: * M7V | B162: Not assigned
A163: * M7W | B163: Not assigned
A164: * M7X | B164: Not assigned
A165: * M7Z | B165: Not assigned
A166: * M8A | B166: Not assigned
A167: * M8B | B167: Not assigned
A168: * M8C | B168: Not assigned
A169: * M8E | B169: Not assigned
A170: * M8G | B170: Not assigned
A171: * M8H | B171: Not assigned
A172: * M8J | B172: Not assigned
A173: * M8K | B173: Not assigned
A174: * M8L | B174: Not assigned
A175: * M8M | B175: Not assigned
A176: * M8N | B176: Not assigned
A177: * M8P | B177: Not assigned
A178: * M8R | B178: Not assigned
A179: * M8S | B179: Not assigned
A180: * M8T | B180: Not assigned
A181: * M9E | B181: Not assigned
A182: * M9G | B182: Not assigned
A183: * M9H | B183: Not assigned
A184: * M9J | B184: Not assigned
A185: * M9K | B185: Not assigned
A186: * M9S | B186: Not assigned
A187: * M9T | B187: Not assigned
A188: * M9X | B188: Not assigned
A189: * M9Y | B189: Not assigned
A190: * M9Z | B190: Not assigned
A191: * N0S | B191: Not in use
A192: * N0T | B192: Not in use
A193: * N0V | B193: Not in use
A194: * N0W | B194: Not in use
A195: * N0X | B195: Not in use
A196: * N0Y | B196: Not in use
A197: * N0Z | B197: Not in use
A198: * N1B | B198: Not assigned
A199: * N1J | B199: Not assigned
A200: * N1N | B200: Not assigned
... 741 more rows

Sheet Raw Data
A1: Row_ID | B1: Accurate_Episode_Date | C1: Case_Reported_Date | D1: Test_Reported_Date | E1: Specimen_Date | F1: Age_Group | G1: Client_Gender | H1: Case_AcquisitionInfo | I1: Outcome1 | J1: Outbreak_Related | K1: Reporting_PHU_ID | L1: Reporting_PHU | M1: Reporting_PHU_Address | N1: Reporting_PHU_City | O1: Reporting_PHU_Postal_Code
A2: 34856 | B2: 2020-11-26 | C2: 2020-11-26 | D2: 2020-11-26 | E2: 2020-11-26 | F2: 80s | G2: FEMALE | H2: OB | I2: Not Resolved | J2: Yes | K2: 2255 | L2: Peterborough Public Health | M2: 185 King Street | N2: Peterborough | O2: K9J 2R8
A3: 32321 | B3: 2020-11-26 | C3: 2020-11-26 | F3: 20s | G3: FEMALE | H3: OB | I3: Not Resolved | J3: Yes | K3: 2253 | L3: Peel Public Health | M3: 7120 Hurontario Street | N3: Mississauga | O3: L5W 1N4
A4: 84950 | B4: 2020-11-26 | C4: 2020-11-26 | D4: 2020-11-26 | E4: 2020-11-26 | F4: 20s | G4: FEMALE | H4: No known epi link | I4: Not Resolved | K4: 3895 | L4: Toronto Public Health | M4: 277 Victoria Street, 5th Floor | N4: Toronto | O4: M5B 1W2
A5: 102505 | B5: 2020-11-26 | C5: 2020-11-26 | D5: 2020-11-23 | E5: 2020-11-23 | F5: <20 | G5: FEMALE | H5: CC | I5: Not Resolved | K5: 2251 | L5: Ottawa Public Health | M5: 100 Constellation Drive | N5: Ottawa | O5: K2G 6J8
A6: 2987 | B6: 2020-11-26 | C6: 2020-11-26 | D6: 2020-11-26 | E6: 2020-11-26 | F6: 90s | G6: MALE | H6: Missing Information | I6: Not Resolved | K6: 2270 | L6: York Region Public Health Services | M6: 17250 Yonge Street | N6: Newmarket | O6: L3Y 6Z1
A7: 25405 | B7: 2020-11-26 | C7: 2020-11-26 | D7: 2020-11-26 | E7: 2020-11-26 | F7: 30s | G7: FEMALE | H7: Missing Information | I7: Not Resolved | K7: 2236 | L7: Halton Region Health Department | M7: 1151 Bronte Road | N7: Oakville | O7: L6M 3Ll
A8: 34792 | B8: 2020-11-26 | C8: 2020-11-26 | D8: 2020-11-26 | E8: 2020-11-26 | F8: 90s | G8: FEMALE | H8: OB | I8: Not Resolved | J8: Yes | K8: 2255 | L8: Peterborough Public Health | M8: 185 King Street | N8: Peterborough | O8: K9J 2R8
A9: 77341 | B9: 2020-11-26 | C9: 2020-11-26 | D9: 2020-11-26 | E9: 2020-11-26 | F9: 50s | G9: FEMALE | H9: No known epi link | I9: Not Resolved | K9: 3895 | L9: Toronto Public Health | M9: 277 Victoria Street, 5th Floor | N9: Toronto | O9: M5B 1W2
A10: 6392 | B10: 2020-11-26 | C10: 2020-11-26 | D10: 2020-11-26 | E10: 2020-11-26 | F10: 80s | G10: FEMALE | H10: Missing Information | I10: Not Resolved | K10: 2237 | L10: Hamilton Public Health Services | M10: 110 King St. West, 2nd Floor | N10: Hamilton | O10: L8P 4S6
A11: 12301 | B11: 2020-11-26 | C11: 2020-11-26 | D11: 2020-11-26 | E11: 2020-11-26 | F11: 80s | G11: FEMALE | H11: Missing Information | I11: Not Resolved | K11: 2260 | L11: Simcoe Muskoka District Health Unit | M11: 15 Sperling Drive | N11: Barrie | O11: L4M 6K9
A12: 111206 | B12: 2020-11-26 | C12: 2020-11-26 | D12: 2020-11-26 | E12: 2020-11-26 | F12: 20s | G12: MALE | H12: Missing Information | I12: Not Resolved | K12: 2253 | L12: Peel Public Health | M12: 7120 Hurontario Street | N12: Mississauga | O12: L5W 1N4
A13: 21958 | B13: 2020-11-25 | C13: 2020-11-26 | D13: 2020-11-26 | E13: 2020-11-25 | F13: 40s | G13: FEMALE | H13: Missing Information | I13: Not Resolved | K13: 2253 | L13: Peel Public Health | M13: 7120 Hurontario Street | N13: Mississauga | O13: L5W 1N4
A14: 10599 | B14: 2020-11-25 | C14: 2020-11-26 | D14: 2020-11-26 | E14: 2020-11-25 | F14: 30s | G14: MALE | H14: Missing Information | I14: Not Resolved | K14: 2237 | L14: Hamilton Public Health Services | M14: 110 King St. West, 2nd Floor | N14: Hamilton | O14: L8P 4S6
A15: 10576 | B15: 2020-11-25 | C15: 2020-11-25 | D15: 2020-11-25 | E15: 2020-11-25 | F15: 60s | G15: FEMALE | H15: Missing Information | I15: Not Resolved | K15: 2253 | L15: Peel Public Health | M15: 7120 Hurontario Street | N15: Mississauga | O15: L5W 1N4
A16: 11636 | B16: 2020-11-25 | C16: 2020-11-26 | D16: 2020-11-26 | E16: 2020-11-25 | F16: 40s | G16: FEMALE | H16: Missing Information | I16: Not Resolved | K16: 2265 | L16: Region of Waterloo, Public Health | M16: 99 Regina Street South | N16: Waterloo | O16: N2J 4V3
A17: 3395 | B17: 2020-11-25 | C17: 2020-11-26 | D17: 2020-11-26 | E17: 2020-11-25 | F17: 50s | G17: FEMALE | H17: Missing Information | I17: Not Resolved | K17: 2253 | L17: Peel Public Health | M17: 7120 Hurontario Street | N17: Mississauga | O17: L5W 1N4
A18: 1702 | B18: 2020-11-25 | C18: 2020-11-26 | D18: 2020-11-26 | E18: 2020-11-26 | F18: 20s | G18: MALE | H18: Missing Information | I18: Not Resolved | K18: 2265 | L18: Region of Waterloo, Public Health | M18: 99 Regina Street South | N18: Waterloo | O18: N2J 4V3
A19: 20022 | B19: 2020-11-25 | C19: 2020-11-26 | D19: 2020-11-26 | E19: 2020-11-25 | F19: 70s | G19: MALE | H19: Missing Information | I19: Not Resolved | K19: 2253 | L19: Peel Public Health | M19: 7120 Hurontario Street | N19: Mississauga | O19: L5W 1N4
A20: 12041 | B20: 2020-11-25 | C20: 2020-11-25 | F20: 30s | G20: MALE | H20: Missing Information | I20: Not Resolved | K20: 4913 | L20: Southwestern Public Health | M20: 1230 Talbot Street | N20: St. Thomas | O20: N5P 1G9
A21: 27380 | B21: 2020-11-25 | C21: 2020-11-26 | D21: 2020-11-26 | E21: 2020-11-25 | F21: 20s | G21: MALE | H21: Missing Information | I21: Not Resolved | K21: 2253 | L21: Peel Public Health | M21: 7120 Hurontario Street | N21: Mississauga | O21: L5W 1N4
A22: 20021 | B22: 2020-11-25 | C22: 2020-11-26 | D22: 2020-11-26 | E22: 2020-11-25 | F22: 20s | G22: MALE | H22: Missing Information | I22: Not Resolved | K22: 2253 | L22: Peel Public Health | M22: 7120 Hurontario Street | N22: Mississauga | O22: L5W 1N4
A23: 34655 | B23: 2020-11-25 | C23: 2020-11-26 | D23: 2020-11-26 | E23: 2020-11-25 | F23: 80s | G23: MALE | H23: OB | I23: Not Resolved | J23: Yes | K23: 2253 | L23: Peel Public Health | M23: 7120 Hurontario Street | N23: Mississauga | O23: L5W 1N4
A24: 12197 | B24: 2020-11-25 | C24: 2020-11-26 | D24: 2020-11-26 | E24: 2020-11-25 | F24: 50s | G24: MALE | H24: Missing Information | I24: Not Resolved | K24: 4913 | L24: Southwestern Public Health | M24: 1230 Talbot Street | N24: St. Thomas | O24: N5P 1G9
A25: 19965 | B25: 2020-11-25 | C25: 2020-11-26 | D25: 2020-11-26 | E25: 2020-11-25 | F25: 30s | G25: MALE | H25: Missing Information | I25: Not Resolved | K25: 2253 | L25: Peel Public Health | M25: 7120 Hurontario Street | N25: Mississauga | O25: L5W 1N4
A26: 20576 | B26: 2020-11-25 | C26: 2020-11-26 | D26: 2020-11-26 | E26: 2020-11-25 | F26: 30s | G26: MALE | H26: Missing Information | I26: Not Resolved | K26: 2260 | L26: Simcoe Muskoka District Health Unit | M26: 15 Sperling Drive | N26: Barrie | O26: L4M 6K9
A27: 95641 | B27: 2020-11-25 | C27: 2020-11-26 | D27: 2020-11-26 | E27: 2020-11-25 | F27: 30s | G27: FEMALE | H27: No known epi link | I27: Not Resolved | K27: 3895 | L27: Toronto Public Health | M27: 277 Victoria Street, 5th Floor | N27: Toronto | O27: M5B 1W2
A28: 21762 | B28: 2020-11-25 | C28: 2020-11-26 | D28: 2020-11-26 | E28: 2020-11-25 | F28: <20 | G28: FEMALE | H28: Missing Information | I28: Not Resolved | K28: 2246 | L28: Niagara Region Public Health Department | M28: 1815 Sir Isaac Brock Way | N28: Thorold | O28: L2V 4T7
A29: 28682 | B29: 2020-11-25 | C29: 2020-11-25 | D29: 2020-11-24 | E29: 2020-11-24 | F29: 40s | G29: MALE | H29: Missing Information | I29: Not Resolved | K29: 2270 | L29: York Region Public Health Services | M29: 17250 Yonge Street | N29: Newmarket | O29: L3Y 6Z1
A30: 9473 | B30: 2020-11-25 | C30: 2020-11-26 | D30: 2020-11-26 | E30: 2020-11-25 | F30: 70s | G30: MALE | H30: Missing Information | I30: Not Resolved | K30: 2253 | L30: Peel Public Health | M30: 7120 Hurontario Street | N30: Mississauga | O30: L5W 1N4
A31: 9409 | B31: 2020-11-25 | C31: 2020-11-26 | D31: 2020-11-26 | E31: 2020-11-25 | F31: 30s | G31: FEMALE | H31: Missing Information | I31: Not Resolved | K31: 2253 | L31: Peel Public Health | M31: 7120 Hurontario Street | N31: Mississauga | O31: L5W 1N4
A32: 27476 | B32: 2020-11-25 | C32: 2020-11-26 | D32: 2020-11-26 | E32: 2020-11-26 | F32: 50s | G32: FEMALE | H32: Missing Information | I32: Not Resolved | K32: 2270 | L32: York Region Public Health Services | M32: 17250 Yonge Street | N32: Newmarket | O32: L3Y 6Z1
A33: 2037 | B33: 2020-11-25 | C33: 2020-11-26 | D33: 2020-11-26 | E33: 2020-11-25 | F33: 70s | G33: FEMALE | H33: Missing Information | I33: Not Resolved | K33: 2265 | L33: Region of Waterloo, Public Health | M33: 99 Regina Street South | N33: Waterloo | O33: N2J 4V3
A34: 26006 | B34: 2020-11-25 | C34: 2020-11-25 | D34: 2020-11-25 | E34: 2020-11-25 | F34: 50s | G34: MALE | H34: No known epi link | I34: Not Resolved | K34: 2237 | L34: Hamilton Public Health Services | M34: 110 King St. West, 2nd Floor | N34: Hamilton | O34: L8P 4S6
A35: 21928 | B35: 2020-11-25 | C35: 2020-11-26 | D35: 2020-11-26 | E35: 2020-11-25 | F35: 60s | G35: MALE | H35: Missing Information | I35: Not Resolved | K35: 2253 | L35: Peel Public Health | M35: 7120 Hurontario Street | N35: Mississauga | O35: L5W 1N4
A36: 9618 | B36: 2020-11-25 | C36: 2020-11-25 | D36: 2020-11-25 | E36: 2020-11-25 | F36: 40s | G36: MALE | H36: Missing Information | I36: Not Resolved | K36: 2253 | L36: Peel Public Health | M36: 7120 Hurontario Street | N36: Mississauga | O36: L5W 1N4
A37: 21170 | B37: 2020-11-25 | C37: 2020-11-26 | D37: 2020-11-26 | E37: 2020-11-25 | F37: 40s | G37: MALE | H37: Missing Information | I37: Not Resolved | K37: 2253 | L37: Peel Public Health | M37: 7120 Hurontario Street | N37: Mississauga | O37: L5W 1N4
A38: 21225 | B38: 2020-11-25 | C38: 2020-11-26 | D38: 2020-11-26 | E38: 2020-11-25 | F38: 40s | G38: MALE | H38: Missing Information | I38: Not Resolved | K38: 2237 | L38: Hamilton Public Health Services | M38: 110 King St. West, 2nd Floor | N38: Hamilton | O38: L8P 4S6
A39: 95781 | B39: 2020-11-25 | C39: 2020-11-25 | D39: 2020-11-25 | E39: 2020-11-25 | F39: <20 | G39: MALE | H39: CC | I39: Not Resolved | K39: 3895 | L39: Toronto Public Health | M39: 277 Victoria Street, 5th Floor | N39: Toronto | O39: M5B 1W2
A40: 100783 | B40: 2020-11-25 | C40: 2020-11-26 | D40: 2020-11-26 | E40: 2020-11-25 | F40: 50s | G40: FEMALE | H40: Missing Information | I40: Not Resolved | K40: 2253 | L40: Peel Public Health | M40: 7120 Hurontario Street | N40: Mississauga | O40: L5W 1N4
A41: 1844 | B41: 2020-11-25 | C41: 2020-11-26 | D41: 2020-11-26 | E41: 2020-11-25 | F41: 30s | G41: FEMALE | H41: Missing Information | I41: Not Resolved | K41: 2237 | L41: Hamilton Public Health Services | M41: 110 King St. West, 2nd Floor | N41: Hamilton | O41: L8P 4S6
A42: 21478 | B42: 2020-11-25 | C42: 2020-11-26 | D42: 2020-11-26 | E42: 2020-11-25 | F42: 50s | G42: MALE | H42: Missing Information | I42: Not Resolved | K42: 2253 | L42: Peel Public Health | M42: 7120 Hurontario Street | N42: Mississauga | O42: L5W 1N4
A43: 21355 | B43: 2020-11-25 | C43: 2020-11-26 | D43: 2020-11-26 | E43: 2020-11-25 | F43: 60s | G43: MALE | H43: Missing Information | I43: Not Resolved | K43: 2237 | L43: Hamilton Public Health Services | M43: 110 King St. West, 2nd Floor | N43: Hamilton | O43: L8P 4S6
A44: 37716 | B44: 2020-11-25 | C44: 2020-11-25 | D44: 2020-11-25 | E44: 2020-11-25 | F44: 80s | G44: FEMALE | H44: OB | I44: Not Resolved | J44: Yes | K44: 2227 | L44: Brant County Health Unit | M44: 194 Terrace Hill Street | N44: Brantford | O44: N3R 1G7
A45: 19814 | B45: 2020-11-25 | C45: 2020-11-26 | D45: 2020-11-26 | E45: 2020-11-25 | F45: 30s | G45: MALE | H45: Missing Information | I45: Not Resolved | K45: 2253 | L45: Peel Public Health | M45: 7120 Hurontario Street | N45: Mississauga | O45: L5W 1N4
A46: 13565 | B46: 2020-11-25 | C46: 2020-11-26 | D46: 2020-11-26 | E46: 2020-11-25 | F46: 20s | G46: FEMALE | H46: Missing Information | I46: Not Resolved | K46: 2253 | L46: Peel Public Health | M46: 7120 Hurontario Street | N46: Mississauga | O46: L5W 1N4
A47: 110406 | B47: 2020-11-25 | C47: 2020-11-25 | D47: 2020-11-25 | E47: 2020-11-25 | F47: 70s | G47: FEMALE | H47: Missing Information | I47: Not Resolved | K47: 2253 | L47: Peel Public Health | M47: 7120 Hurontario Street | N47: Mississauga | O47: L5W 1N4
A48: 18927 | B48: 2020-11-25 | C48: 2020-11-26 | D48: 2020-11-26 | E48: 2020-11-25 | F48: 30s | G48: MALE | H48: Missing Information | I48: Not Resolved | K48: 2237 | L48: Hamilton Public Health Services | M48: 110 King St. West, 2nd Floor | N48: Hamilton | O48: L8P 4S6
A49: 84663 | B49: 2020-11-25 | C49: 2020-11-25 | D49: 2020-11-25 | E49: 2020-11-25 | F49: 90s | G49: MALE | H49: No known epi link | I49: Not Resolved | K49: 3895 | L49: Toronto Public Health | M49: 277 Victoria Street, 5th Floor | N49: Toronto | O49: M5B 1W2
A50: 13303 | B50: 2020-11-25 | C50: 2020-11-26 | D50: 2020-11-26 | E50: 2020-11-25 | F50: 40s | G50: FEMALE | H50: Missing Information | I50: Not Resolved | K50: 2237 | L50: Hamilton Public Health Services | M50: 110 King St. West, 2nd Floor | N50: Hamilton | O50: L8P 4S6
A51: 19323 | B51: 2020-11-25 | C51: 2020-11-26 | D51: 2020-11-26 | E51: 2020-11-25 | F51: 40s | G51: FEMALE | H51: Missing Information | I51: Not Resolved | K51: 2270 | L51: York Region Public Health Services | M51: 17250 Yonge Street | N51: Newmarket | O51: L3Y 6Z1
A52: 27320 | B52: 2020-11-25 | C52: 2020-11-26 | D52: 2020-11-26 | E52: 2020-11-25 | F52: 20s | G52: FEMALE | H52: Missing Information | I52: Not Resolved | K52: 2253 | L52: Peel Public Health | M52: 7120 Hurontario Street | N52: Mississauga | O52: L5W 1N4
A53: 91122 | B53: 2020-11-25 | C53: 2020-11-25 | D53: 2020-11-25 | E53: 2020-11-25 | F53: <20 | G53: FEMALE | H53: No known epi link | I53: Not Resolved | K53: 3895 | L53: Toronto Public Health | M53: 277 Victoria Street, 5th Floor | N53: Toronto | O53: M5B 1W2
A54: 18900 | B54: 2020-11-25 | C54: 2020-11-26 | D54: 2020-11-26 | E54: 2020-11-25 | F54: 50s | G54: MALE | H54: Missing Information | I54: Not Resolved | K54: 2253 | L54: Peel Public Health | M54: 7120 Hurontario Street | N54: Mississauga | O54: L5W 1N4
A55: 18683 | B55: 2020-11-25 | C55: 2020-11-26 | D55: 2020-11-26 | E55: 2020-11-25 | F55: <20 | G55: FEMALE | H55: Missing Information | I55: Not Resolved | K55: 2253 | L55: Peel Public Health | M55: 7120 Hurontario Street | N55: Mississauga | O55: L5W 1N4
A56: 31283 | B56: 2020-11-25 | C56: 2020-11-26 | D56: 2020-11-26 | E56: 2020-11-25 | F56: 50s | G56: FEMALE | H56: Missing Information | I56: Not Resolved | K56: 2230 | L56: Durham Region Health Department | M56: 605 Rossland Road East | N56: Whitby | O56: L1N 0B2
A57: 31211 | B57: 2020-11-25 | C57: 2020-11-26 | D57: 2020-11-26 | E57: 2020-11-25 | F57: 30s | G57: FEMALE | H57: Missing Information | I57: Not Resolved | K57: 2270 | L57: York Region Public Health Services | M57: 17250 Yonge Street | N57: Newmarket | O57: L3Y 6Z1
A58: 29555 | B58: 2020-11-25 | C58: 2020-11-26 | D58: 2020-11-26 | F58: 70s | G58: FEMALE | H58: Missing Information | I58: Not Resolved | K58: 2246 | L58: Niagara Region Public Health Department | M58: 1815 Sir Isaac Brock Way | N58: Thorold | O58: L2V 4T7
A59: 13888 | B59: 2020-11-25 | C59: 2020-11-26 | D59: 2020-11-26 | E59: 2020-11-25 | F59: 20s | G59: FEMALE | H59: Missing Information | I59: Not Resolved | K59: 2246 | L59: Niagara Region Public Health Department | M59: 1815 Sir Isaac Brock Way | N59: Thorold | O59: L2V 4T7
A60: 13883 | B60: 2020-11-25 | C60: 2020-11-26 | D60: 2020-11-26 | E60: 2020-11-25 | F60: 80s | G60: FEMALE | H60: Missing Information | I60: Not Resolved | K60: 2236 | L60: Halton Region Health Department | M60: 1151 Bronte Road | N60: Oakville | O60: L6M 3Ll
A61: 84845 | B61: 2020-11-25 | C61: 2020-11-25 | D61: 2020-11-25 | E61: 2020-11-25 | F61: <20 | G61: MALE | H61: No known epi link | I61: Not Resolved | K61: 3895 | L61: Toronto Public Health | M61: 277 Victoria Street, 5th Floor | N61: Toronto | O61: M5B 1W2
A62: 821 | B62: 2020-11-25 | C62: 2020-11-26 | D62: 2020-11-26 | E62: 2020-11-25 | F62: <20 | G62: MALE | H62: Missing Information | I62: Not Resolved | K62: 2246 | L62: Niagara Region Public Health Department | M62: 1815 Sir Isaac Brock Way | N62: Thorold | O62: L2V 4T7
A63: 19328 | B63: 2020-11-25 | C63: 2020-11-25 | D63: 2020-11-25 | E63: 2020-11-25 | F63: 40s | G63: MALE | H63: Missing Information | I63: Not Resolved | K63: 2270 | L63: York Region Public Health Services | M63: 17250 Yonge Street | N63: Newmarket | O63: L3Y 6Z1
A64: 12502 | B64: 2020-11-25 | C64: 2020-11-26 | D64: 2020-11-26 | E64: 2020-11-25 | F64: 60s | G64: MALE | H64: Missing Information | I64: Not Resolved | K64: 2270 | L64: York Region Public Health Services | M64: 17250 Yonge Street | N64: Newmarket | O64: L3Y 6Z1
A65: 12452 | B65: 2020-11-25 | C65: 2020-11-26 | D65: 2020-11-26 | E65: 2020-11-25 | F65: 20s | G65: FEMALE | H65: Missing Information | I65: Not Resolved | K65: 2253 | L65: Peel Public Health | M65: 7120 Hurontario Street | N65: Mississauga | O65: L5W 1N4
A66: 31876 | B66: 2020-11-25 | C66: 2020-11-26 | D66: 2020-11-26 | E66: 2020-11-25 | F66: 50s | G66: FEMALE | H66: Missing Information | I66: Not Resolved | K66: 2237 | L66: Hamilton Public Health Services | M66: 110 King St. West, 2nd Floor | N66: Hamilton | O66: L8P 4S6
A67: 1212 | B67: 2020-11-25 | C67: 2020-11-26 | D67: 2020-11-26 | E67: 2020-11-25 | F67: <20 | G67: MALE | H67: Missing Information | I67: Not Resolved | K67: 2270 | L67: York Region Public Health Services | M67: 17250 Yonge Street | N67: Newmarket | O67: L3Y 6Z1
A68: 29280 | B68: 2020-11-25 | C68: 2020-11-25 | D68: 2020-11-25 | E68: 2020-11-25 | F68: 30s | G68: FEMALE | H68: Missing Information | I68: Not Resolved | K68: 2253 | L68: Peel Public Health | M68: 7120 Hurontario Street | N68: Mississauga | O68: L5W 1N4
A69: 31937 | B69: 2020-11-25 | C69: 2020-11-26 | D69: 2020-11-26 | E69: 2020-11-25 | F69: 30s | G69: FEMALE | H69: Missing Information | I69: Not Resolved | K69: 2237 | L69: Hamilton Public Health Services | M69: 110 King St. West, 2nd Floor | N69: Hamilton | O69: L8P 4S6
A70: 26459 | B70: 2020-11-25 | C70: 2020-11-26 | D70: 2020-11-26 | E70: 2020-11-25 | F70: 20s | G70: MALE | H70: Missing Information | I70: Not Resolved | K70: 2253 | L70: Peel Public Health | M70: 7120 Hurontario Street | N70: Mississauga | O70: L5W 1N4
A71: 31916 | B71: 2020-11-25 | C71: 2020-11-25 | D71: 2020-11-25 | E71: 2020-11-25 | F71: <20 | G71: MALE | H71: Missing Information | I71: Not Resolved | K71: 2253 | L71: Peel Public Health | M71: 7120 Hurontario Street | N71: Mississauga | O71: L5W 1N4
A72: 12652 | B72: 2020-11-25 | C72: 2020-11-26 | D72: 2020-11-26 | E72: 2020-11-25 | F72: 20s | G72: FEMALE | H72: Missing Information | I72: Not Resolved | K72: 2265 | L72: Region of Waterloo, Public Health | M72: 99 Regina Street South | N72: Waterloo | O72: N2J 4V3
A73: 12937 | B73: 2020-11-25 | C73: 2020-11-25 | D73: 2020-11-25 | E73: 2020-11-25 | F73: 20s | G73: MALE | H73: CC | I73: Not Resolved | K73: 2253 | L73: Peel Public Health | M73: 7120 Hurontario Street | N73: Mississauga | O73: L5W 1N4
A74: 67666 | B74: 2020-11-25 | C74: 2020-11-25 | D74: 2020-11-25 | E74: 2020-11-22 | F74: 80s | G74: MALE | H74: No known epi link | I74: Not Resolved | J74: Yes | K74: 3895 | L74: Toronto Public Health | M74: 277 Victoria Street, 5th Floor | N74: Toronto | O74: M5B 1W2
A75: 12997 | B75: 2020-11-25 | C75: 2020-11-25 | D75: 2020-11-25 | E75: 2020-11-25 | F75: 60s | G75: FEMALE | H75: Missing Information | I75: Not Resolved | K75: 2253 | L75: Peel Public Health | M75: 7120 Hurontario Street | N75: Mississauga | O75: L5W 1N4
A76: 12970 | B76: 2020-11-25 | C76: 2020-11-26 | D76: 2020-11-26 | E76: 2020-11-25 | F76: 20s | G76: FEMALE | H76: Missing Information | I76: Not Resolved | K76: 2253 | L76: Peel Public Health | M76: 7120 Hurontario Street | N76: Mississauga | O76: L5W 1N4
A77: 26504 | B77: 2020-11-25 | C77: 2020-11-26 | D77: 2020-11-26 | E77: 2020-11-25 | F77: 20s | G77: MALE | H77: Missing Information | I77: Not Resolved | K77: 2253 | L77: Peel Public Health | M77: 7120 Hurontario Street | N77: Mississauga | O77: L5W 1N4
A78: 12653 | B78: 2020-11-25 | C78: 2020-11-26 | D78: 2020-11-26 | E78: 2020-11-26 | F78: <20 | G78: MALE | H78: Missing Information | I78: Not Resolved | K78: 2253 | L78: Peel Public Health | M78: 7120 Hurontario Street | N78: Mississauga | O78: L5W 1N4
A79: 12767 | B79: 2020-11-25 | C79: 2020-11-26 | D79: 2020-11-26 | E79: 2020-11-25 | F79: 20s | G79: FEMALE | H79: Missing Information | I79: Not Resolved | K79: 2253 | L79: Peel Public Health | M79: 7120 Hurontario Street | N79: Mississauga | O79: L5W 1N4
A80: 12692 | B80: 2020-11-25 | C80: 2020-11-25 | D80: 2020-11-25 | E80: 2020-11-25 | F80: 50s | G80: FEMALE | H80: Missing Information | I80: Not Resolved | K80: 2253 | L80: Peel Public Health | M80: 7120 Hurontario Street | N80: Mississauga | O80: L5W 1N4
A81: 8964 | B81: 2020-11-25 | C81: 2020-11-25 | F81: 20s | G81: MALE | H81: Missing Information | I81: Not Resolved | K81: 2258 | L81: Eastern Ontario Health Unit | M81: 1000 Pitt Street | N81: Cornwall | O81: K6J 5T1
A82: 24085 | B82: 2020-11-25 | C82: 2020-11-25 | D82: 2020-11-25 | E82: 2020-11-25 | F82: 30s | G82: MALE | H82: Missing Information | I82: Not Resolved | K82: 2253 | L82: Peel Public Health | M82: 7120 Hurontario Street | N82: Mississauga | O82: L5W 1N4
A83: 24140 | B83: 2020-11-25 | C83: 2020-11-26 | D83: 2020-11-26 | E83: 2020-11-25 | F83: 40s | G83: MALE | H83: Missing Information | I83: Not Resolved | K83: 2270 | L83: York Region Public Health Services | M83: 17250 Yonge Street | N83: Newmarket | O83: L3Y 6Z1
A84: 33485 | B84: 2020-11-25 | C84: 2020-11-25 | F84: 60s | G84: FEMALE | H84: OB | I84: Not Resolved | J84: Yes | K84: 2270 | L84: York Region Public Health Services | M84: 17250 Yonge Street | N84: Newmarket | O84: L3Y 6Z1
A85: 108021 | B85: 2020-11-25 | C85: 2020-11-26 | D85: 2020-11-26 | E85: 2020-11-25 | F85: 60s | G85: FEMALE | H85: OB | I85: Not Resolved | J85: Yes | K85: 2253 | L85: Peel Public Health | M85: 7120 Hurontario Street | N85: Mississauga | O85: L5W 1N4
A86: 24218 | B86: 2020-11-25 | C86: 2020-11-26 | D86: 2020-11-26 | E86: 2020-11-25 | F86: 30s | G86: FEMALE | H86: Missing Information | I86: Not Resolved | K86: 2253 | L86: Peel Public Health | M86: 7120 Hurontario Street | N86: Mississauga | O86: L5W 1N4
A87: 33691 | B87: 2020-11-25 | C87: 2020-11-25 | D87: 2020-11-25 | F87: 60s | G87: MALE | H87: OB | I87: Not Resolved | J87: Yes | K87: 2265 | L87: Region of Waterloo, Public Health | M87: 99 Regina Street South | N87: Waterloo | O87: N2J 4V3
A88: 27978 | B88: 2020-11-25 | C88: 2020-11-26 | D88: 2020-11-26 | E88: 2020-11-26 | F88: 30s | G88: MALE | H88: Missing Information | I88: Not Resolved | K88: 2270 | L88: York Region Public Health Services | M88: 17250 Yonge Street | N88: Newmarket | O88: L3Y 6Z1
A89: 105529 | B89: 2020-11-25 | C89: 2020-11-26 | D89: 2020-11-26 | E89: 2020-11-25 | F89: 60s | G89: MALE | H89: Missing Information | I89: Not Resolved | K89: 2253 | L89: Peel Public Health | M89: 7120 Hurontario Street | N89: Mississauga | O89: L5W 1N4
A90: 3040 | B90: 2020-11-25 | C90: 2020-11-26 | D90: 2020-11-26 | E90: 2020-11-25 | F90: 30s | G90: FEMALE | H90: Missing Information | I90: Not Resolved | K90: 2253 | L90: Peel Public Health | M90: 7120 Hurontario Street | N90: Mississauga | O90: L5W 1N4
A91: 108172 | B91: 2020-11-25 | C91: 2020-11-26 | D91: 2020-11-26 | E91: 2020-11-25 | F91: 20s | G91: FEMALE | H91: Missing Information | I91: Not Resolved | K91: 2233 | L91: Grey Bruce Health Unit | M91: 101 17th Street East | N91: Owen Sound | O91: N4K 0A5
A92: 34432 | B92: 2020-11-25 | C92: 2020-11-26 | D92: 2020-11-26 | E92: 2020-11-25 | F92: 70s | G92: MALE | H92: OB | I92: Not Resolved | J92: Yes | K92: 2253 | L92: Peel Public Health | M92: 7120 Hurontario Street | N92: Mississauga | O92: L5W 1N4
A93: 23442 | B93: 2020-11-25 | C93: 2020-11-26 | D93: 2020-11-26 | E93: 2020-11-25 | F93: 80s | G93: MALE | H93: Missing Information | I93: Not Resolved | K93: 2236 | L93: Halton Region Health Department | M93: 1151 Bronte Road | N93: Oakville | O93: L6M 3Ll
A94: 104366 | B94: 2020-11-25 | C94: 2020-11-26 | D94: 2020-11-26 | E94: 2020-11-25 | F94: 90s | G94: MALE | H94: OB | I94: Not Resolved | J94: Yes | K94: 2253 | L94: Peel Public Health | M94: 7120 Hurontario Street | N94: Mississauga | O94: L5W 1N4
A95: 35774 | B95: 2020-11-25 | C95: 2020-11-26 | D95: 2020-11-26 | E95: 2020-11-25 | F95: 80s | G95: MALE | H95: OB | I95: Not Resolved | J95: Yes | K95: 2253 | L95: Peel Public Health | M95: 7120 Hurontario Street | N95: Mississauga | O95: L5W 1N4
A96: 5365 | B96: 2020-11-25 | C96: 2020-11-26 | D96: 2020-11-26 | E96: 2020-11-25 | F96: 50s | G96: FEMALE | H96: Missing Information | I96: Not Resolved | K96: 2253 | L96: Peel Public Health | M96: 7120 Hurontario Street | N96: Mississauga | O96: L5W 1N4
A97: 5329 | B97: 2020-11-25 | C97: 2020-11-25 | D97: 2020-11-25 | E97: 2020-11-25 | F97: <20 | G97: MALE | H97: Missing Information | I97: Not Resolved | K97: 2253 | L97: Peel Public Health | M97: 7120 Hurontario Street | N97: Mississauga | O97: L5W 1N4
A98: 5551 | B98: 2020-11-25 | C98: 2020-11-26 | D98: 2020-11-26 | E98: 2020-11-25 | F98: 30s | G98: FEMALE | H98: Missing Information | I98: Not Resolved | K98: 2253 | L98: Peel Public Health | M98: 7120 Hurontario Street | N98: Mississauga | O98: L5W 1N4
A99: 33424 | B99: 2020-11-25 | C99: 2020-11-25 | D99: 2020-11-25 | E99: 2020-11-25 | F99: 70s | G99: MALE | H99: No known epi link | I99: Not Resolved | J99: Yes | K99: 2270 | L99: York Region Public Health Services | M99: 17250 Yonge Street | N99: Newmarket | O99: L3Y 6Z1
A100: 3693 | B100: 2020-11-25 | C100: 2020-11-26 | D100: 2020-11-26 | E100: 2020-11-25 | F100: 60s | G100: FEMALE | H100: Missing Information | I100: Not Resolved | K100: 2253 | L100: Peel Public Health | M100: 7120 Hurontario Street | N100: Mississauga | O100: L5W 1N4
A101: 27740 | B101: 2020-11-25 | C101: 2020-11-26 | D101: 2020-11-26 | E101: 2020-11-25 | F101: 30s | G101: FEMALE | H101: Missing Information | I101: Not Resolved | K101: 2237 | L101: Hamilton Public Health Services | M101: 110 King St. West, 2nd Floor | N101: Hamilton | O101: L8P 4S6
A102: 3755 | B102: 2020-11-25 | C102: 2020-11-26 | D102: 2020-11-26 | E102: 2020-11-25 | F102: 20s | G102: FEMALE | H102: Missing Information | I102: Not Resolved | K102: 2253 | L102: Peel Public Health | M102: 7120 Hurontario Street | N102: Mississauga | O102: L5W 1N4
A103: 3694 | B103: 2020-11-25 | C103: 2020-11-26 | D103: 2020-11-26 | E103: 2020-11-25 | F103: 40s | G103: FEMALE | H103: Missing Information | I103: Not Resolved | K103: 2253 | L103: Peel Public Health | M103: 7120 Hurontario Street | N103: Mississauga | O103: L5W 1N4
A104: 34129 | B104: 2020-11-25 | C104: 2020-11-25 | F104: 30s | G104: FEMALE | H104: OB | I104: Not Resolved | J104: Yes | K104: 2253 | L104: Peel Public Health | M104: 7120 Hurontario Street | N104: Mississauga | O104: L5W 1N4
A105: 3324 | B105: 2020-11-25 | C105: 2020-11-26 | D105: 2020-11-26 | E105: 2020-11-25 | F105: 60s | G105: FEMALE | H105: Missing Information | I105: Not Resolved | K105: 5183 | L105: Huron Perth District Health Unit | M105: 653 West Gore Street | N105: Stratford | O105: N5A 1L4
A106: 107491 | B106: 2020-11-25 | C106: 2020-11-26 | D106: 2020-11-25 | E106: 2020-11-25 | F106: 50s | G106: MALE | H106: No known epi link | I106: Not Resolved | K106: 2251 | L106: Ottawa Public Health | M106: 100 Constellation Drive | N106: Ottawa | O106: K2G 6J8
A107: 3503 | B107: 2020-11-25 | C107: 2020-11-26 | D107: 2020-11-26 | E107: 2020-11-26 | F107: 60s | G107: MALE | H107: Missing Information | I107: Not Resolved | K107: 2260 | L107: Simcoe Muskoka District Health Unit | M107: 15 Sperling Drive | N107: Barrie | O107: L4M 6K9
A108: 3490 | B108: 2020-11-25 | C108: 2020-11-25 | D108: 2020-11-25 | E108: 2020-11-25 | F108: 40s | G108: MALE | H108: Missing Information | I108: Not Resolved | K108: 2253 | L108: Peel Public Health | M108: 7120 Hurontario Street | N108: Mississauga | O108: L5W 1N4
A109: 106334 | B109: 2020-11-25 | C109: 2020-11-26 | D109: 2020-11-26 | E109: 2020-11-26 | F109: 30s | G109: FEMALE | H109: Missing Information | I109: Not Resolved | K109: 2230 | L109: Durham Region Health Department | M109: 605 Rossland Road East | N109: Whitby | O109: L1N 0B2
A110: 27901 | B110: 2020-11-25 | C110: 2020-11-26 | D110: 2020-11-26 | E110: 2020-11-25 | F110: 50s | G110: MALE | H110: Missing Information | I110: Not Resolved | K110: 2253 | L110: Peel Public Health | M110: 7120 Hurontario Street | N110: Mississauga | O110: L5W 1N4
A111: 4738 | B111: 2020-11-25 | C111: 2020-11-26 | D111: 2020-11-26 | E111: 2020-11-25 | F111: 30s | G111: FEMALE | H111: Missing Information | I111: Not Resolved | K111: 2236 | L111: Halton Region Health Department | M111: 1151 Bronte Road | N111: Oakville | O111: L6M 3Ll
A112: 25394 | B112: 2020-11-25 | C112: 2020-11-25 | D112: 2020-11-25 | E112: 2020-11-25 | F112: <20 | G112: FEMALE | H112: Missing Information | I112: Not Resolved | K112: 2253 | L112: Peel Public Health | M112: 7120 Hurontario Street | N112: Mississauga | O112: L5W 1N4
A113: 4220 | B113: 2020-11-25 | C113: 2020-11-26 | D113: 2020-11-26 | E113: 2020-11-25 | F113: 20s | G113: FEMALE | H113: Missing Information | I113: Not Resolved | K113: 2230 | L113: Durham Region Health Department | M113: 605 Rossland Road East | N113: Whitby | O113: L1N 0B2
A114: 24878 | B114: 2020-11-25 | C114: 2020-11-26 | D114: 2020-11-26 | E114: 2020-11-25 | F114: 60s | G114: MALE | H114: Missing Information | I114: Not Resolved | K114: 2253 | L114: Peel Public Health | M114: 7120 Hurontario Street | N114: Mississauga | O114: L5W 1N4
A115: 106953 | B115: 2020-11-25 | C115: 2020-11-26 | D115: 2020-11-26 | E115: 2020-11-25 | F115: 30s | G115: MALE | H115: Missing Information | I115: Not Resolved | K115: 2237 | L115: Hamilton Public Health Services | M115: 110 King St. West, 2nd Floor | N115: Hamilton | O115: L8P 4S6
A116: 4078 | B116: 2020-11-25 | C116: 2020-11-26 | D116: 2020-11-26 | E116: 2020-11-25 | F116: 30s | G116: MALE | H116: Missing Information | I116: Not Resolved | K116: 2246 | L116: Niagara Region Public Health Department | M116: 1815 Sir Isaac Brock Way | N116: Thorold | O116: L2V 4T7
A117: 4012 | B117: 2020-11-25 | C117: 2020-11-26 | D117: 2020-11-26 | E117: 2020-11-25 | F117: 30s | G117: MALE | H117: Missing Information | I117: Not Resolved | K117: 2253 | L117: Peel Public Health | M117: 7120 Hurontario Street | N117: Mississauga | O117: L5W 1N4
A118: 108246 | B118: 2020-11-25 | C118: 2020-11-26 | D118: 2020-11-26 | E118: 2020-11-25 | F118: 60s | G118: FEMALE | H118: Missing Information | I118: Not Resolved | K118: 2253 | L118: Peel Public Health | M118: 7120 Hurontario Street | N118: Mississauga | O118: L5W 1N4
A119: 34555 | B119: 2020-11-25 | C119: 2020-11-26 | D119: 2020-11-26 | E119: 2020-11-25 | F119: 70s | G119: MALE | H119: OB | I119: Not Resolved | J119: Yes | K119: 2253 | L119: Peel Public Health | M119: 7120 Hurontario Street | N119: Mississauga | O119: L5W 1N4
A120: 102779 | B120: 2020-11-25 | C120: 2020-11-26 | D120: 2020-11-25 | E120: 2020-11-25 | F120: 20s | G120: MALE | H120: No known epi link | I120: Not Resolved | K120: 2251 | L120: Ottawa Public Health | M120: 100 Constellation Drive | N120: Ottawa | O120: K2G 6J8
A121: 102570 | B121: 2020-11-25 | C121: 2020-11-25 | D121: 2020-11-25 | E121: 2020-11-24 | F121: 30s | G121: FEMALE | H121: CC | I121: Not Resolved | K121: 2244 | L121: Middlesex-London Health Unit | M121: 50 King Street | N121: London | O121: N6A 5L7
A122: 22766 | B122: 2020-11-25 | C122: 2020-11-26 | D122: 2020-11-26 | E122: 2020-11-25 | F122: 40s | G122: MALE | H122: Missing Information | I122: Not Resolved | K122: 2253 | L122: Peel Public Health | M122: 7120 Hurontario Street | N122: Mississauga | O122: L5W 1N4
A123: 102780 | B123: 2020-11-25 | C123: 2020-11-26 | D123: 2020-11-25 | E123: 2020-11-25 | F123: 50s | G123: MALE | H123: No known epi link | I123: Not Resolved | K123: 2251 | L123: Ottawa Public Health | M123: 100 Constellation Drive | N123: Ottawa | O123: K2G 6J8
A124: 102783 | B124: 2020-11-25 | C124: 2020-11-26 | D124: 2020-11-25 | E124: 2020-11-25 | F124: 70s | G124: FEMALE | H124: No known epi link | I124: Not Resolved | K124: 2251 | L124: Ottawa Public Health | M124: 100 Constellation Drive | N124: Ottawa | O124: K2G 6J8
A125: 102785 | B125: 2020-11-25 | C125: 2020-11-26 | D125: 2020-11-25 | E125: 2020-11-25 | F125: 30s | G125: FEMALE | H125: No known epi link | I125: Not Resolved | K125: 2251 | L125: Ottawa Public Health | M125: 100 Constellation Drive | N125: Ottawa | O125: K2G 6J8
A126: 102781 | B126: 2020-11-25 | C126: 2020-11-26 | D126: 2020-11-25 | E126: 2020-11-25 | F126: 50s | G126: FEMALE | H126: No known epi link | I126: Not Resolved | K126: 2251 | L126: Ottawa Public Health | M126: 100 Constellation Drive | N126: Ottawa | O126: K2G 6J8
A127: 102782 | B127: 2020-11-25 | C127: 2020-11-26 | D127: 2020-11-25 | E127: 2020-11-25 | F127: 60s | G127: MALE | H127: No known epi link | I127: Not Resolved | K127: 2251 | L127: Ottawa Public Health | M127: 100 Constellation Drive | N127: Ottawa | O127: K2G 6J8
A128: 8755 | B128: 2020-11-25 | C128: 2020-11-26 | D128: 2020-11-26 | E128: 2020-11-25 | F128: 40s | G128: MALE | H128: Missing Information | I128: Not Resolved | K128: 2237 | L128: Hamilton Public Health Services | M128: 110 King St. West, 2nd Floor | N128: Hamilton | O128: L8P 4S6
A129: 2087 | B129: 2020-11-25 | C129: 2020-11-26 | D129: 2020-11-26 | E129: 2020-11-26 | F129: 30s | G129: MALE | H129: Missing Information | I129: Not Resolved | K129: 2265 | L129: Region of Waterloo, Public Health | M129: 99 Regina Street South | N129: Waterloo | O129: N2J 4V3
A130: 109297 | B130: 2020-11-25 | C130: 2020-11-26 | D130: 2020-11-26 | E130: 2020-11-25 | F130: 60s | G130: MALE | H130: No known epi link | I130: Not Resolved | K130: 3895 | L130: Toronto Public Health | M130: 277 Victoria Street, 5th Floor | N130: Toronto | O130: M5B 1W2
A131: 8866 | B131: 2020-11-25 | C131: 2020-11-26 | D131: 2020-11-26 | E131: 2020-11-25 | F131: 60s | G131: MALE | H131: Missing Information | I131: Not Resolved | K131: 2270 | L131: York Region Public Health Services | M131: 17250 Yonge Street | N131: Newmarket | O131: L3Y 6Z1
A132: 22339 | B132: 2020-11-25 | C132: 2020-11-26 | D132: 2020-11-26 | E132: 2020-11-25 | F132: 30s | G132: FEMALE | H132: Missing Information | I132: Not Resolved | K132: 2253 | L132: Peel Public Health | M132: 7120 Hurontario Street | N132: Mississauga | O132: L5W 1N4
A133: 27504 | B133: 2020-11-25 | C133: 2020-11-26 | D133: 2020-11-26 | E133: 2020-11-25 | F133: 20s | G133: FEMALE | H133: Missing Information | I133: Not Resolved | K133: 2253 | L133: Peel Public Health | M133: 7120 Hurontario Street | N133: Mississauga | O133: L5W 1N4
A134: 102429 | B134: 2020-11-25 | C134: 2020-11-25 | D134: 2020-11-24 | E134: 2020-11-24 | F134: 20s | G134: MALE | H134: CC | I134: Not Resolved | K134: 2244 | L134: Middlesex-London Health Unit | M134: 50 King Street | N134: London | O134: N6A 5L7
A135: 2200 | B135: 2020-11-25 | C135: 2020-11-26 | D135: 2020-11-26 | E135: 2020-11-25 | F135: <20 | G135: FEMALE | H135: Missing Information | I135: Not Resolved | K135: 2246 | L135: Niagara Region Public Health Department | M135: 1815 Sir Isaac Brock Way | N135: Thorold | O135: L2V 4T7
A136: 22486 | B136: 2020-11-25 | C136: 2020-11-26 | D136: 2020-11-26 | E136: 2020-11-25 | F136: 50s | G136: FEMALE | H136: Missing Information | I136: Not Resolved | K136: 2246 | L136: Niagara Region Public Health Department | M136: 1815 Sir Isaac Brock Way | N136: Thorold | O136: L2V 4T7
A137: 6512 | B137: 2020-11-25 | C137: 2020-11-26 | D137: 2020-11-26 | E137: 2020-11-25 | F137: 80s | G137: FEMALE | H137: Missing Information | I137: Not Resolved | K137: 2236 | L137: Halton Region Health Department | M137: 1151 Bronte Road | N137: Oakville | O137: L6M 3Ll
A138: 23231 | B138: 2020-11-25 | C138: 2020-11-26 | D138: 2020-11-26 | E138: 2020-11-25 | F138: 50s | G138: MALE | H138: Missing Information | I138: Not Resolved | K138: 2237 | L138: Hamilton Public Health Services | M138: 110 King St. West, 2nd Floor | N138: Hamilton | O138: L8P 4S6
A139: 23073 | B139: 2020-11-25 | C139: 2020-11-25 | D139: 2020-11-25 | E139: 2020-11-25 | F139: 20s | G139: MALE | H139: Missing Information | I139: Not Resolved | K139: 2253 | L139: Peel Public Health | M139: 7120 Hurontario Street | N139: Mississauga | O139: L5W 1N4
A140: 103178 | B140: 2020-11-25 | C140: 2020-11-26 | D140: 2020-11-26 | E140: 2020-11-25 | F140: 60s | G140: MALE | H140: Missing Information | I140: Not Resolved | K140: 2253 | L140: Peel Public Health | M140: 7120 Hurontario Street | N140: Mississauga | O140: L5W 1N4
A141: 6460 | B141: 2020-11-25 | C141: 2020-11-26 | D141: 2020-11-26 | E141: 2020-11-25 | F141: 60s | G141: FEMALE | H141: Missing Information | I141: Not Resolved | K141: 2253 | L141: Peel Public Health | M141: 7120 Hurontario Street | N141: Mississauga | O141: L5W 1N4
A142: 6203 | B142: 2020-11-25 | C142: 2020-11-26 | D142: 2020-11-26 | E142: 2020-11-26 | F142: 20s | G142: FEMALE | H142: Missing Information | I142: Not Resolved | K142: 2260 | L142: Simcoe Muskoka District Health Unit | M142: 15 Sperling Drive | N142: Barrie | O142: L4M 6K9
A143: 6115 | B143: 2020-11-25 | C143: 2020-11-26 | D143: 2020-11-26 | E143: 2020-11-25 | F143: <20 | G143: FEMALE | H143: Missing Information | I143: Not Resolved | K143: 2253 | L143: Peel Public Health | M143: 7120 Hurontario Street | N143: Mississauga | O143: L5W 1N4
A144: 25632 | B144: 2020-11-25 | C144: 2020-11-25 | D144: 2020-11-25 | E144: 2020-11-25 | F144: 20s | G144: MALE | H144: Missing Information | I144: Not Resolved | K144: 2236 | L144: Halton Region Health Department | M144: 1151 Bronte Road | N144: Oakville | O144: L6M 3Ll
A145: 28237 | B145: 2020-11-25 | C145: 2020-11-26 | D145: 2020-11-26 | E145: 2020-11-25 | F145: <20 | G145: MALE | H145: Missing Information | I145: Not Resolved | K145: 2236 | L145: Halton Region Health Department | M145: 1151 Bronte Road | N145: Oakville | O145: L6M 3Ll
A146: 102788 | B146: 2020-11-25 | C146: 2020-11-26 | D146: 2020-11-25 | E146: 2020-11-25 | F146: 50s | G146: MALE | H146: No known epi link | I146: Not Resolved | K146: 2251 | L146: Ottawa Public Health | M146: 100 Constellation Drive | N146: Ottawa | O146: K2G 6J8
A147: 102790 | B147: 2020-11-25 | C147: 2020-11-26 | D147: 2020-11-25 | E147: 2020-11-25 | F147: 40s | G147: MALE | H147: No known epi link | I147: Not Resolved | K147: 2251 | L147: Ottawa Public Health | M147: 100 Constellation Drive | N147: Ottawa | O147: K2G 6J8
A148: 102786 | B148: 2020-11-25 | C148: 2020-11-26 | D148: 2020-11-25 | E148: 2020-11-25 | F148: 30s | G148: FEMALE | H148: No known epi link | I148: Not Resolved | K148: 2251 | L148: Ottawa Public Health | M148: 100 Constellation Drive | N148: Ottawa | O148: K2G 6J8
A149: 102787 | B149: 2020-11-25 | C149: 2020-11-26 | D149: 2020-11-25 | E149: 2020-11-25 | F149: 30s | G149: MALE | H149: No known epi link | I149: Not Resolved | K149: 2251 | L149: Ottawa Public Health | M149: 100 Constellation Drive | N149: Ottawa | O149: K2G 6J8
A150: 35610 | B150: 2020-11-25 | C150: 2020-11-26 | D150: 2020-11-26 | E150: 2020-11-25 | F150: 80s | G150: MALE | H150: OB | I150: Not Resolved | J150: Yes | K150: 2253 | L150: Peel Public Health | M150: 7120 Hurontario Street | N150: Mississauga | O150: L5W 1N4
A151: 102927 | B151: 2020-11-25 | C151: 2020-11-26 | D151: 2020-11-25 | E151: 2020-11-25 | F151: <20 | G151: FEMALE | H151: No known epi link | I151: Not Resolved | K151: 2251 | L151: Ottawa Public Health | M151: 100 Constellation Drive | N151: Ottawa | O151: K2G 6J8
A152: 6864 | B152: 2020-11-25 | C152: 2020-11-25 | F152: 20s | G152: MALE | H152: CC | I152: Not Resolved | K152: 2253 | L152: Peel Public Health | M152: 7120 Hurontario Street | N152: Mississauga | O152: L5W 1N4
A153: 102922 | B153: 2020-11-25 | C153: 2020-11-26 | D153: 2020-11-25 | E153: 2020-11-25 | F153: <20 | G153: UNSPECIFIED | H153: No known epi link | I153: Not Resolved | K153: 2251 | L153: Ottawa Public Health | M153: 100 Constellation Drive | N153: Ottawa | O153: K2G 6J8
A154: 102925 | B154: 2020-11-25 | C154: 2020-11-26 | D154: 2020-11-25 | E154: 2020-11-25 | F154: 30s | G154: FEMALE | H154: No known epi link | I154: Not Resolved | K154: 2251 | L154: Ottawa Public Health | M154: 100 Constellation Drive | N154: Ottawa | O154: K2G 6J8
A155: 155 | B155: 2020-11-25 | C155: 2020-11-26 | D155: 2020-11-26 | E155: 2020-11-26 | F155: 30s | G155: FEMALE | H155: Missing Information | I155: Not Resolved | K155: 2265 | L155: Region of Waterloo, Public Health | M155: 99 Regina Street South | N155: Waterloo | O155: N2J 4V3
A156: 30397 | B156: 2020-11-25 | C156: 2020-11-25 | D156: 2020-11-25 | E156: 2020-11-25 | F156: 40s | G156: FEMALE | H156: Missing Information | I156: Not Resolved | K156: 2236 | L156: Halton Region Health Department | M156: 1151 Bronte Road | N156: Oakville | O156: L6M 3Ll
A157: 110651 | B157: 2020-11-25 | C157: 2020-11-25 | D157: 2020-11-25 | E157: 2020-11-25 | F157: 40s | G157: FEMALE | H157: Missing Information | I157: Not Resolved | K157: 2237 | L157: Hamilton Public Health Services | M157: 110 King St. West, 2nd Floor | N157: Hamilton | O157: L8P 4S6
A158: 86738 | B158: 2020-11-25 | C158: 2020-11-26 | D158: 2020-11-26 | E158: 2020-11-25 | F158: 60s | G158: MALE | H158: No known epi link | I158: Not Resolved | K158: 3895 | L158: Toronto Public Health | M158: 277 Victoria Street, 5th Floor | N158: Toronto | O158: M5B 1W2
A159: 26965 | B159: 2020-11-25 | C159: 2020-11-26 | D159: 2020-11-26 | E159: 2020-11-25 | F159: <20 | G159: FEMALE | H159: Missing Information | I159: Not Resolved | K159: 2237 | L159: Hamilton Public Health Services | M159: 110 King St. West, 2nd Floor | N159: Hamilton | O159: L8P 4S6
A160: 17631 | B160: 2020-11-25 | C160: 2020-11-26 | D160: 2020-11-26 | E160: 2020-11-25 | F160: 20s | G160: FEMALE | H160: Missing Information | I160: Not Resolved | K160: 2246 | L160: Niagara Region Public Health Department | M160: 1815 Sir Isaac Brock Way | N160: Thorold | O160: L2V 4T7
A161: 398 | B161: 2020-11-25 | C161: 2020-11-26 | D161: 2020-11-26 | E161: 2020-11-25 | F161: 70s | G161: FEMALE | H161: Missing Information | I161: Not Resolved | K161: 2253 | L161: Peel Public Health | M161: 7120 Hurontario Street | N161: Mississauga | O161: L5W 1N4
A162: 18189 | B162: 2020-11-25 | C162: 2020-11-26 | D162: 2020-11-26 | E162: 2020-11-25 | F162: 40s | G162: MALE | H162: Missing Information | I162: Not Resolved | K162: 2237 | L162: Hamilton Public Health Services | M162: 110 King St. West, 2nd Floor | N162: Hamilton | O162: L8P 4S6
A163: 16851 | B163: 2020-11-25 | C163: 2020-11-26 | D163: 2020-11-26 | E163: 2020-11-25 | F163: 50s | G163: MALE | H163: Missing Information | I163: Not Resolved | K163: 2253 | L163: Peel Public Health | M163: 7120 Hurontario Street | N163: Mississauga | O163: L5W 1N4
A164: 16719 | B164: 2020-11-25 | C164: 2020-11-26 | D164: 2020-11-26 | E164: 2020-11-25 | F164: 40s | G164: FEMALE | H164: Missing Information | I164: Not Resolved | K164: 2253 | L164: Peel Public Health | M164: 7120 Hurontario Street | N164: Mississauga | O164: L5W 1N4
A165: 14453 | B165: 2020-11-25 | C165: 2020-11-26 | D165: 2020-11-26 | E165: 2020-11-25 | F165: 50s | G165: FEMALE | H165: Missing Information | I165: Not Resolved | K165: 2253 | L165: Peel Public Health | M165: 7120 Hurontario Street | N165: Mississauga | O165: L5W 1N4
A166: 27033 | B166: 2020-11-25 | C166: 2020-11-26 | D166: 2020-11-26 | F166: 30s | G166: MALE | H166: Missing Information | I166: Not Resolved | K166: 2246 | L166: Niagara Region Public Health Department | M166: 1815 Sir Isaac Brock Way | N166: Thorold | O166: L2V 4T7
A167: 30873 | B167: 2020-11-25 | C167: 2020-11-26 | D167: 2020-11-26 | E167: 2020-11-25 | F167: 20s | G167: MALE | H167: Missing Information | I167: Not Resolved | K167: 2241 | L167: Kingston, Frontenac and Lennox & Addington Public Health | M167: 221 Portsmouth Avenue | N167: Kingston | O167: K7M 1V5
A168: 30534 | B168: 2020-11-25 | C168: 2020-11-26 | D168: 2020-11-26 | E168: 2020-11-25 | F168: 90s | G168: FEMALE | H168: Missing Information | I168: Not Resolved | K168: 2237 | L168: Hamilton Public Health Services | M168: 110 King St. West, 2nd Floor | N168: Hamilton | O168: L8P 4S6
A169: 17817 | B169: 2020-11-25 | C169: 2020-11-26 | D169: 2020-11-26 | E169: 2020-11-25 | F169: 50s | G169: MALE | H169: Missing Information | I169: Not Resolved | K169: 2253 | L169: Peel Public Health | M169: 7120 Hurontario Street | N169: Mississauga | O169: L5W 1N4
A170: 15426 | B170: 2020-11-25 | C170: 2020-11-26 | D170: 2020-11-26 | E170: 2020-11-25 | F170: 50s | G170: MALE | H170: Missing Information | I170: Not Resolved | K170: 2253 | L170: Peel Public Health | M170: 7120 Hurontario Street | N170: Mississauga | O170: L5W 1N4
A171: 35150 | B171: 2020-11-25 | C171: 2020-11-26 | D171: 2020-11-26 | E171: 2020-11-25 | F171: 80s | G171: MALE | H171: OB | I171: Not Resolved | J171: Yes | K171: 2253 | L171: Peel Public Health | M171: 7120 Hurontario Street | N171: Mississauga | O171: L5W 1N4
A172: 30886 | B172: 2020-11-25 | C172: 2020-11-26 | D172: 2020-11-26 | E172: 2020-11-25 | F172: 70s | G172: FEMALE | H172: Missing Information | I172: Not Resolved | K172: 2253 | L172: Peel Public Health | M172: 7120 Hurontario Street | N172: Mississauga | O172: L5W 1N4
A173: 15458 | B173: 2020-11-25 | C173: 2020-11-25 | D173: 2020-11-25 | E173: 2020-11-25 | F173: 50s | G173: MALE | H173: CC | I173: Not Resolved | K173: 2253 | L173: Peel Public Health | M173: 7120 Hurontario Street | N173: Mississauga | O173: L5W 1N4
A174: 29666 | B174: 2020-11-25 | C174: 2020-11-25 | D174: 2020-11-25 | E174: 2020-11-25 | F174: <20 | G174: FEMALE | H174: Missing Information | I174: Not Resolved | K174: 2253 | L174: Peel Public Health | M174: 7120 Hurontario Street | N174: Mississauga | O174: L5W 1N4
A175: 687 | B175: 2020-11-25 | C175: 2020-11-26 | D175: 2020-11-26 | E175: 2020-11-25 | F175: 40s | G175: FEMALE | H175: Missing Information | I175: Not Resolved | K175: 2265 | L175: Region of Waterloo, Public Health | M175: 99 Regina Street South | N175: Waterloo | O175: N2J 4V3
A176: 14970 | B176: 2020-11-25 | C176: 2020-11-26 | D176: 2020-11-26 | E176: 2020-11-25 | F176: 50s | G176: MALE | H176: Missing Information | I176: Not Resolved | K176: 2253 | L176: Peel Public Health | M176: 7120 Hurontario Street | N176: Mississauga | O176: L5W 1N4
A177: 110719 | B177: 2020-11-25 | C177: 2020-11-26 | D177: 2020-11-26 | E177: 2020-11-25 | F177: 60s | G177: MALE | H177: Missing Information | I177: Not Resolved | K177: 2270 | L177: York Region Public Health Services | M177: 17250 Yonge Street | N177: Newmarket | O177: L3Y 6Z1
A178: 85430 | B178: 2020-11-25 | C178: 2020-11-25 | D178: 2020-11-25 | E178: 2020-11-25 | F178: <20 | G178: FEMALE | H178: CC | I178: Not Resolved | K178: 3895 | L178: Toronto Public Health | M178: 277 Victoria Street, 5th Floor | N178: Toronto | O178: M5B 1W2
A179: 89495 | B179: 2020-11-25 | C179: 2020-11-25 | D179: 2020-11-25 | E179: 2020-11-24 | F179: 30s | G179: FEMALE | H179: No known epi link | I179: Not Resolved | K179: 3895 | L179: Toronto Public Health | M179: 277 Victoria Street, 5th Floor | N179: Toronto | O179: M5B 1W2
A180: 16944 | B180: 2020-11-25 | C180: 2020-11-26 | D180: 2020-11-26 | E180: 2020-11-25 | F180: 50s | G180: FEMALE | H180: Missing Information | I180: Not Resolved | K180: 2270 | L180: York Region Public Health Services | M180: 17250 Yonge Street | N180: Newmarket | O180: L3Y 6Z1
A181: 15276 | B181: 2020-11-25 | C181: 2020-11-26 | D181: 2020-11-26 | E181: 2020-11-25 | F181: 20s | G181: MALE | H181: Missing Information | I181: Not Resolved | K181: 2237 | L181: Hamilton Public Health Services | M181: 110 King St. West, 2nd Floor | N181: Hamilton | O181: L8P 4S6
A182: 111175 | B182: 2020-11-25 | C182: 2020-11-26 | D182: 2020-11-26 | E182: 2020-11-25 | F182: 50s | G182: MALE | H182: Missing Information | I182: Not Resolved | K182: 2237 | L182: Hamilton Public Health Services | M182: 110 King St. West, 2nd Floor | N182: Hamilton | O182: L8P 4S6
A183: 17591 | B183: 2020-11-25 | C183: 2020-11-26 | D183: 2020-11-26 | E183: 2020-11-25 | F183: 60s | G183: FEMALE | H183: Missing Information | I183: Not Resolved | K183: 2237 | L183: Hamilton Public Health Services | M183: 110 King St. West, 2nd Floor | N183: Hamilton | O183: L8P 4S6
A184: 16992 | B184: 2020-11-25 | C184: 2020-11-26 | D184: 2020-11-26 | E184: 2020-11-25 | F184: 20s | G184: FEMALE | H184: Missing Information | I184: Not Resolved | K184: 2253 | L184: Peel Public Health | M184: 7120 Hurontario Street | N184: Mississauga | O184: L5W 1N4
A185: 17705 | B185: 2020-11-25 | C185: 2020-11-26 | D185: 2020-11-26 | E185: 2020-11-25 | F185: <20 | G185: MALE | H185: Missing Information | I185: Not Resolved | K185: 2246 | L185: Niagara Region Public Health Department | M185: 1815 Sir Isaac Brock Way | N185: Thorold | O185: L2V 4T7
A186: 14763 | B186: 2020-11-25 | C186: 2020-11-26 | D186: 2020-11-26 | E186: 2020-11-25 | F186: 30s | G186: FEMALE | H186: Missing Information | I186: Not Resolved | K186: 2253 | L186: Peel Public Health | M186: 7120 Hurontario Street | N186: Mississauga | O186: L5W 1N4
A187: 18030 | B187: 2020-11-25 | C187: 2020-11-26 | D187: 2020-11-26 | E187: 2020-11-25 | F187: 50s | G187: MALE | H187: Missing Information | I187: Not Resolved | K187: 2246 | L187: Niagara Region Public Health Department | M187: 1815 Sir Isaac Brock Way | N187: Thorold | O187: L2V 4T7
A188: 15377 | B188: 2020-11-25 | C188: 2020-11-26 | D188: 2020-11-26 | E188: 2020-11-25 | F188: 30s | G188: FEMALE | H188: Missing Information | I188: Not Resolved | K188: 2253 | L188: Peel Public Health | M188: 7120 Hurontario Street | N188: Mississauga | O188: L5W 1N4
A189: 29657 | B189: 2020-11-25 | C189: 2020-11-26 | D189: 2020-11-26 | E189: 2020-11-25 | F189: 20s | G189: MALE | H189: Missing Information | I189: Not Resolved | K189: 2253 | L189: Peel Public Health | M189: 7120 Hurontario Street | N189: Mississauga | O189: L5W 1N4
A190: 30416 | B190: 2020-11-25 | C190: 2020-11-26 | D190: 2020-11-26 | E190: 2020-11-25 | F190: 40s | G190: MALE | H190: Missing Information | I190: Not Resolved | K190: 2253 | L190: Peel Public Health | M190: 7120 Hurontario Street | N190: Mississauga | O190: L5W 1N4
A191: 15281 | B191: 2020-11-25 | C191: 2020-11-26 | D191: 2020-11-26 | E191: 2020-11-25 | F191: 30s | G191: MALE | H191: Missing Information | I191: Not Resolved | K191: 2237 | L191: Hamilton Public Health Services | M191: 110 King St. West, 2nd Floor | N191: Hamilton | O191: L8P 4S6
A192: 27021 | B192: 2020-11-25 | C192: 2020-11-26 | D192: 2020-11-26 | E192: 2020-11-25 | F192: 20s | G192: FEMALE | H192: Missing Information | I192: Not Resolved | K192: 2253 | L192: Peel Public Health | M192: 7120 Hurontario Street | N192: Mississauga | O192: L5W 1N4
A193: 435 | B193: 2020-11-25 | C193: 2020-11-26 | D193: 2020-11-26 | E193: 2020-11-26 | F193: 20s | G193: FEMALE | H193: Missing Information | I193: Not Resolved | K193: 2238 | L193: Hastings and Prince Edward Counties Health Unit | M193: 179 North Park Street | N193: Belleville | O193: K8P 4P1
A194: 22891 | B194: 2020-11-24 | C194: 2020-11-25 | D194: 2020-11-25 | E194: 2020-11-24 | F194: 20s | G194: MALE | H194: Missing Information | I194: Not Resolved | K194: 2253 | L194: Peel Public Health | M194: 7120 Hurontario Street | N194: Mississauga | O194: L5W 1N4
A195: 16057 | B195: 2020-11-24 | C195: 2020-11-25 | D195: 2020-11-25 | E195: 2020-11-24 | F195: 20s | G195: MALE | H195: Missing Information | I195: Not Resolved | K195: 2253 | L195: Peel Public Health | M195: 7120 Hurontario Street | N195: Mississauga | O195: L5W 1N4
A196: 7153 | B196: 2020-11-24 | C196: 2020-11-25 | D196: 2020-11-25 | E196: 2020-11-24 | F196: 30s | G196: MALE | H196: CC | I196: Not Resolved | K196: 2268 | L196: Windsor-Essex County Health Unit | M196: 1005 Ouellette Avenue | N196: Windsor | O196: N9A 4J8
A197: 102924 | B197: 2020-11-24 | C197: 2020-11-26 | D197: 2020-11-25 | E197: 2020-11-24 | F197: 30s | G197: FEMALE | H197: No known epi link | I197: Not Resolved | K197: 2251 | L197: Ottawa Public Health | M197: 100 Constellation Drive | N197: Ottawa | O197: K2G 6J8
A198: 79337 | B198: 2020-11-24 | C198: 2020-11-24 | D198: 2020-11-24 | E198: 2020-11-24 | F198: 20s | G198: MALE | H198: No known epi link | I198: Not Resolved | K198: 3895 | L198: Toronto Public Health | M198: 277 Victoria Street, 5th Floor | N198: Toronto | O198: M5B 1W2
A199: 32871 | B199: 2020-11-24 | C199: 2020-11-25 | D199: 2020-11-25 | E199: 2020-11-25 | F199: 70s | G199: FEMALE | H199: OB | I199: Not Resolved | J199: Yes | K199: 2270 | L199: York Region Public Health Services | M199: 17250 Yonge Street | N199: Newmarket | O199: L3Y 6Z1
A200: 79377 | B200: 2020-11-24 | C200: 2020-11-25 | D200: 2020-11-25 | E200: 2020-11-24 | F200: 40s | G200: MALE | H200: No known epi link | I200: Not Resolved | K200: 3895 | L200: Toronto Public Health | M200: 277 Victoria Street, 5th Floor | N200: Toronto | O200: M5B 1W2
... 4300 more rows
